{"text_format":"1","workbook":"xlsx","n_sheets":7,"sheets":["Copyright","Cover","Instruction","All Result","Fresh Data QA","Sheet1","Fresh Quality"],"not_rendered":{"charts":0,"images":0,"macros":1,"external_links":0,"defined_names":2,"comments":2,"pivot_tables":0},"unopened":[],"bounds":{"document_bytes":16777216,"sheet_cells":100000,"rows_first":2000,"rows_last":500,"rows_between":2000,"halvings":0,"cell_chars":16384,"cell_head_chars":4096},"cells_cut":0,"cells_raw":0,"read":"whole","date_system":"1900"}

{"sheet":"Copyright","index":0,"n_rows":0,"n_cols":0,"rows_kept":0,"cut":false,"hidden":false,"merged":[]}

{"sheet":"Cover","index":1,"n_rows":20,"n_cols":7,"rows_kept":20,"cut":false,"hidden":false,"merged":[[18,6,18,8],[14,6,14,8],[13,6,13,8],[4,4,4,10],[9,6,9,8],[12,6,12,8],[5,5,6,9]]}
[]
[]
[]
[]
[null,null,null,null,"Ecotoxicity Data Quality Assessment Method "]
[null,null,null,null,null,"To be used to assess the quality of data used for the Australian and New Zealand Guidelines for Fresh and Marine Water Quality (including sediment) and the Australian National Environment Protection (Assessment of Site Contamination) Measure"]
[]
[]
[]
[null,null,null,null,null,null,"Developed by "]
[]
[]
[null,null,null,null,null,null,"Zoe Zhang"]
[null,null,null,null,null,null,"   Dr. Michael Warne"]
[null,null,null,null,null,null,"Alison Vieritz "]
[]
[]
[]
[null,null,null,null,null,null,"Catchment Water Science Group"]
[null,null,null,null,null,"                 Department of Environment and Resource Management"]

{"sheet":"Instruction","index":2,"n_rows":17,"n_cols":11,"rows_kept":17,"cut":false,"hidden":false,"merged":[[16,6,16,8],[22,4,22,8]]}
[]
[]
[]
[]
[]
[]
[null,"Tabs contain questionaries -->           ",null,null,"Fresh Data QA ",null,"Marine Data QA",null,"Terrestrial Data QA",null,"Sediment Data QA"]
[]
[]
[]
[null,"Tabs contain score of paper and short answers to questions -->",null,null,"Fresh Quality",null,"Marine Quality",null,"Terrestrial Quality",null,"Sediment Quality"]
[]
[]
[]
[]
[]
[null,"Tab Contains all scores of paper --> ",null,null,null,null,"All Result "]

{"sheet":"All Result","index":3,"n_rows":163,"n_cols":26,"rows_kept":163,"cut":false,"hidden":false,"merged":[[143,1,143,2]]}
["Chemical:","Metsulfuron-methyl"]
["CAS Number:","74223-64-6"]
[]
[{"$f":"'Fresh Data QA'!C2","v":"Category"},{"$f":"'Fresh Data QA'!C3","v":"Paper and data unique identifier(eg. 1-1,10-150)"},{"$f":"'Fresh Data QA'!C90","v":"Total score"},{"$f":"'Fresh Data QA'!C92","v":"Quality Score"},{"$f":"'Fresh Data QA'!G3","v":"Species (Scientific name)"},{"$f":"'Fresh Data QA'!G4","v":"Lifestage"},{"$f":"'Fresh Data QA'!G5","v":"Exposure duration"},{"$f":"'Fresh Data QA'!G6","v":"Measure of toxicity"},{"$f":"'Fresh Data QA'!G7","v":"Toxicity endpoint"},{"$f":"'Fresh Data QA'!G8","v":"Toxicity value"},{"$f":"'Fresh Data QA'!C4","v":"Citation"},{"$f":"'Fresh Data QA'!G2","v":"Citation No."},null,null,"Checked (10/01/18)","Double check"]
["Freshwater","886-1",75,0.72815533980582525,"Rhinella arenarum","Tadpoles","48 hours","Mortality: Survival","LC50","105.56 mg/L","Lajmanovich,R.C., C.M. Junges, A.M. Attademo, P.M. Peltzer, M.C. Cabagna-Zenklusen, and A. Basso, 2013. Individual and Mixture Toxicity of Commercial Formulations Containing Glyphosate, Metsulfuron-Methyl, Bispyribac-Sodium, and Picloram on Rhinella arenarum Tadpoles, Water Air Soil Pollut.224(3): 1-13. ","886","Do Not Use - Use QAQC Version below",null,"Formulation - 60% active ingredient","Do not use - Formulation - 60% active ingredient"]
["Freshwater","886-2",75,0.72815533980582525,"Rhinella arenarum","Tadpoles","48 hours","Mortality: Survival","NOEC","80 mg/L","Lajmanovich,R.C., C.M. Junges, A.M. Attademo, P.M. Peltzer, M.C. Cabagna-Zenklusen, and A. Basso, 2013. Individual and Mixture Toxicity of Commercial Formulations Containing Glyphosate, Metsulfuron-Methyl, Bispyribac-Sodium, and Picloram on Rhinella arenarum Tadpoles, Water Air Soil Pollut.224(3): 1-13. ","886","Do Not Use - Use QAQC Version below",null,"Formulation - 60% active ingredient","Do not use - Formulation - 60% active ingredient"]
["Freshwater","886-3",75,0.72815533980582525,"Rhinella arenarum","Tadpoles","48 hours","Mortality: Survival","LOEC","160 mg/L","Lajmanovich,R.C., C.M. Junges, A.M. Attademo, P.M. Peltzer, M.C. Cabagna-Zenklusen, and A. Basso, 2013. Individual and Mixture Toxicity of Commercial Formulations Containing Glyphosate, Metsulfuron-Methyl, Bispyribac-Sodium, and Picloram on Rhinella arenarum Tadpoles, Water Air Soil Pollut.224(3): 1-13. ","886","Do Not Use - Use QAQC Version below",null,"Formulation - 60% active ingredient","Do not use - Formulation - 60% active ingredient"]
["Freshwater","886-4",75,0.72815533980582525,"Rhinella arenarum","Tadpoles","48 hours","Mortality: Survival","LC50","13.2 mg/L","Lajmanovich,R.C., C.M. Junges, A.M. Attademo, P.M. Peltzer, M.C. Cabagna-Zenklusen, and A. Basso, 2013. Individual and Mixture Toxicity of Commercial Formulations Containing Glyphosate, Metsulfuron-Methyl, Bispyribac-Sodium, and Picloram on Rhinella arenarum Tadpoles, Water Air Soil Pollut.224(3): 1-13. ","886","GLYPHOSATE",null,"Formulation - 74.7% active ingredient","Formulation do not use as Glyphosate is test chemical"]
["Freshwater","886-5",75,0.72815533980582525,"Rhinella arenarum","Tadpoles","48 hours","Mortality: Survival","NOEC","10 mg/L","Lajmanovich,R.C., C.M. Junges, A.M. Attademo, P.M. Peltzer, M.C. Cabagna-Zenklusen, and A. Basso, 2013. Individual and Mixture Toxicity of Commercial Formulations Containing Glyphosate, Metsulfuron-Methyl, Bispyribac-Sodium, and Picloram on Rhinella arenarum Tadpoles, Water Air Soil Pollut.224(3): 1-13. ","886","GLYPHOSATE",null,"Formulation - 74.7% active ingredient","Formulation do not use as Glyphosate is test chemical"]
["Freshwater","886-6",75,0.72815533980582525,"Rhinella arenarum","Tadpoles","48 hours","Mortality: Survival","LOEC","20 mg/L","Lajmanovich,R.C., C.M. Junges, A.M. Attademo, P.M. Peltzer, M.C. Cabagna-Zenklusen, and A. Basso, 2013. Individual and Mixture Toxicity of Commercial Formulations Containing Glyphosate, Metsulfuron-Methyl, Bispyribac-Sodium, and Picloram on Rhinella arenarum Tadpoles, Water Air Soil Pollut.224(3): 1-13. ","886","GLYPHOSATE",null,"Formulation - 74.7% active ingredient","Formulation do not use as Glyphosate is test chemical"]
["Freshwater","887-1",67,0.65048543689320393,"Lemna minor","1 Frond","7 days","Population: Relative Growth Rate","EC50","0.51 ug/L","Munkegaard,M., M. Abbaspoor, and N. Cedergreen, 2008. Organophosphorous Insecticides as Herbicide Synergists on the Green Algae Pseudokirchneriella subcapitata and the Aquatic Plant Lemna minor, Ecotoxicology17(1): 29-35. ","887","Do Not Use - Use QAQC Version below",null,"Technical grade, 95% purity","Do not use"]
["Freshwater","887-2",67,0.65048543689320393,"Lemna minor","1 Frond","7 days","Population: Relative Growth Rate","EC50","157 ug/L","Munkegaard,M., M. Abbaspoor, and N. Cedergreen, 2008. Organophosphorous Insecticides as Herbicide Synergists on the Green Algae Pseudokirchneriella subcapitata and the Aquatic Plant Lemna minor, Ecotoxicology17(1): 29-35. ","887","TERBUTHYLAZINE",null,"Technical grade, 99% purity","Do not use"]
["Freshwater","887-3",71,0.68932038834951459,"Pseudokircheriella subcapitata","not-stated","48 hours","Population: Relative Growth Rate","EC50","1934 ug/L","Munkegaard,M., M. Abbaspoor, and N. Cedergreen, 2008. Organophosphorous Insecticides as Herbicide Synergists on the Green Algae Pseudokirchneriella subcapitata and the Aquatic Plant Lemna minor, Ecotoxicology17(1): 29-35. ","887","Do Not Use - Use QAQC Version below",null,"Technical grade, 95% purity","Do not use"]
["Freshwater","887-4",71,0.68932038834951459,"Pseudokircheriella subcapitata","not-stated","48 hours","Population: Relative Growth Rate","EC50","595 ug/L","Munkegaard,M., M. Abbaspoor, and N. Cedergreen, 2008. Organophosphorous Insecticides as Herbicide Synergists on the Green Algae Pseudokirchneriella subcapitata and the Aquatic Plant Lemna minor, Ecotoxicology17(1): 29-35. ","887","TERBUTHYLAZINE",null,"Technical grade, 99% purity","Do not use"]
["Freshwater","888-1",65,0.6310679611650486,"Selenastrum capricornutum","24 hr-old culture","72 hours","Population: Growth Inhibition","IC50","611.8 ug/L","Fai,P.B., A. Grant, and B. Reid, 2007. Chlorophyll a Fluorescence as a Biomarker for Rapid Toxicity Assessment,  Environ. Toxicol. Chem.26(7): 1520-1531. ","888","Do Not Use - Use QAQC Version below",null,"Pestanal analytical standards","Do not use"]
["Freshwater","888-2",65,0.6310679611650486,"Selenastrum capricornutum","24 hr-old culture","72 hours","Population: Growth Inhibition","IC50","81.4 ug/L","Fai,P.B., A. Grant, and B. Reid, 2007. Chlorophyll a Fluorescence as a Biomarker for Rapid Toxicity Assessment,  Environ. Toxicol. Chem.26(7): 1520-1531. ","888","ATRAZINE",null,"Pestanal analytical standards","Do not use"]
["Freshwater","888-3",65,0.6310679611650486,"Selenastrum capricornutum","24 hr-old culture","72 hours","Population: Growth Inhibition","IC50","10.5 ug/L","Fai,P.B., A. Grant, and B. Reid, 2007. Chlorophyll a Fluorescence as a Biomarker for Rapid Toxicity Assessment,  Environ. Toxicol. Chem.26(7): 1520-1531. ","888","DIURON",null,"Pestanal analytical standards","Do not use"]
["Freshwater","889-1",64,0.62135922330097082,"Elodea canadensis","not-stated","8 days","Population: Biomass Dry Weight","NOEC","20 ug/L","Wendt-Rasch,L., P. Pirzadeh, and P. Woin, 2003. Effects of Metsulfuron Methyl and Cypermethrin Exposure on Freshwater Model Ecosystems, Aquat. Toxicol.63(3): 243-256. ","889","Do Not Use - Use QAQC Version below",null,"Standard analytical grade","Do not use"]
["Freshwater","889-2",64,0.62135922330097082,"Myriophyllum spicatum","not-stated","8 days","Population: Biomass Dry Weight","NOEC","20 ug/L","Wendt-Rasch,L., P. Pirzadeh, and P. Woin, 2003. Effects of Metsulfuron Methyl and Cypermethrin Exposure on Freshwater Model Ecosystems, Aquat. Toxicol.63(3): 243-256. ","889","Do Not Use - Use QAQC Version below",null,"Standard analytical grade","Do not use"]
["Freshwater","889-3",60,0.58252427184466016,"Myriophyllum spicatum","not-stated","8 days","Development: Root Growth","LOEC","1 ug/L","Wendt-Rasch,L., P. Pirzadeh, and P. Woin, 2003. Effects of Metsulfuron Methyl and Cypermethrin Exposure on Freshwater Model Ecosystems, Aquat. Toxicol.63(3): 243-256. ","889","Do Not Use - Use QAQC Version below",null,"Standard analytical grade","Do not use"]
["Freshwater","889-4",60,0.58252427184466016,"Elodea canadensis","not-stated","8 days","Development: Root Growth","LOEC","1 ug/L","Wendt-Rasch,L., P. Pirzadeh, and P. Woin, 2003. Effects of Metsulfuron Methyl and Cypermethrin Exposure on Freshwater Model Ecosystems, Aquat. Toxicol.63(3): 243-256. ","889","Do Not Use - Use QAQC Version below",null,"Standard analytical grade","Do not use"]
["Freshwater","889-6",59,0.57281553398058249,"Elodea canadensis","not-stated","8 days","Population: Shoot Growth","LOEC","0.1 ug/L","Wendt-Rasch,L., P. Pirzadeh, and P. Woin, 2003. Effects of Metsulfuron Methyl and Cypermethrin Exposure on Freshwater Model Ecosystems, Aquat. Toxicol.63(3): 243-256. ","889","Do Not Use - Use QAQC Version below",null,"Standard analytical grade","Do not use"]
["Freshwater","889-7",59,0.57281553398058249,"Elodea canadensis","not-stated","8 days","Population: Shoot Growth","NOEC","0.054 ug/L","Wendt-Rasch,L., P. Pirzadeh, and P. Woin, 2003. Effects of Metsulfuron Methyl and Cypermethrin Exposure on Freshwater Model Ecosystems, Aquat. Toxicol.63(3): 243-256. ","889","Do Not Use - Use QAQC Version below",null,"Standard analytical grade","Do not use"]
["Freshwater","889-1-GD",47,0.4563106796116505,"Elodoea canadensis","Apical shoot (WW 3.60g - 3.65g)","14 days","Development: Root Occurence","LOEC","1 ug/L","Wendt-Rasch,L., P. Pirzadeh, and P. Woin, 2003. Effects of Metsulfuron Methyl and Cypermethrin Exposure on Freshwater Model Ecosystems, Aquat. Toxicol.63(3): 243-256. ","889","Do  Not Use - Failed QAQC",null,"Standard analytical grade","Do not use"]
["Freshwater","889-2-GD",47,0.4563106796116505,"Elodea canadensis","Apical shoot (WW 2.30g - 2.35g)","14 days","Development: Root Occurence","IC57","1 ug/L","Wendt-Rasch,L., P. Pirzadeh, and P. Woin, 2003. Effects of Metsulfuron Methyl and Cypermethrin Exposure on Freshwater Model Ecosystems, Aquat. Toxicol.63(3): 243-256. ","889","Do  Not Use - Failed QAQC",null,"Standard analytical grade","Do not use"]
["Freshwater","889-3-GD",59,0.57281553398058249,"Elodea canadensis","Apical shoot (19.5 cm)","8 days","Population: Shoot length","LOEC","0.2 ug/L","Wendt-Rasch,L., P. Pirzadeh, and P. Woin, 2003. , Aquat. Toxicol.63(3): 243-256. ","889","Do Not Use - Use QAQC Version below",null,"Standard analytical grade","Do not use"]
["Freshwater","889-4-GD",59,0.57281553398058249,"Elodea canadensis","Apical shoot (19.5 cm)","8 days","Population: Shoot length","LOEC","0.1 ug/L","Wendt-Rasch,L., P. Pirzadeh, and P. Woin, 2003. Effects of Metsulfuron Methyl and Cypermethrin Exposure on Freshwater Model Ecosystems, Aquat. Toxicol.63(3): 243-256. ","889","Do Not Use - Use QAQC Version below",null,"Standard analytical grade","Do not use"]
["Freshwater","889-5-GD",59,0.57281553398058249,"Elodea canadensis","Apical shoot (19.5 cm)","8 days","Population: Shoot length","NOEC","0.054 ug/L","Wendt-Rasch,L., P. Pirzadeh, and P. Woin, 2003. Effects of Metsulfuron Methyl and Cypermethrin Exposure on Freshwater Model Ecosystems, Aquat. Toxicol.63(3): 243-256. ","889","Do Not Use - Use QAQC Version below",null,"Standard analytical grade","Do not use"]
["Freshwater","889-6-GD",59,0.57281553398058249,"Elodea canadensis","Apical shoot (19.5 cm)","8 days","Population: Shoot growth (dry weight)","NOEC","0.2 ug/L","Wendt-Rasch,L., P. Pirzadeh, and P. Woin, 2003. Effects of Metsulfuron Methyl and Cypermethrin Exposure on Freshwater Model Ecosystems, Aquat. Toxicol.63(3): 243-256. ","889","Do Not Use - Use QAQC Version below",null,"Standard analytical grade","Do not use"]
["Freshwater","887-1-GD",63,0.61165048543689315,"Lemna minor","1 Frond","7 days","Population: Relative growth rate (leaf S.A.)","EC50","0.51 ug/L","Munkegaard,M., M. Abbaspoor, and N. Cedergreen, 2008. Organophosphorous Insecticides as Herbicide Synergists on the Green Algae Pseudokirchneriella subcapitata and the Aquatic Plant Lemna minor, Ecotoxicology17(1): 29-35. ","887","USE THIS VERSION",null,"Technical grade, 95% purity","Technical grade, 95% purity"]
["Freshwater","Olivia added in",63,0.61165048543689315,"Lemna minor","1 Frond","7 days","Population: Relative growth rate (leaf S.A.)","EC50","157 ug/L","Munkegaard,M., M. Abbaspoor, and N. Cedergreen, 2008. Organophosphorous Insecticides as Herbicide Synergists on the Green Algae Pseudokirchneriella subcapitata and the Aquatic Plant Lemna minor, Ecotoxicology17(1): 29-35. ","887","USE THIS VERSION","TERBUTHYLAZINE","Technical grade, 99% purity","Do not use not the right test chemical"]
["Freshwater","887-2-GD",63,0.61165048543689315,"Selenastrum capricornutum","Exponential growth phase","48 hours","Population: Relative growth rate (Chloropyll)","EC50","1934 ug/L","Munkegaard,M., M. Abbaspoor, and N. Cedergreen, 2008. Organophosphorous Insecticides as Herbicide Synergists on the Green Algae Pseudokirchneriella subcapitata and the Aquatic Plant Lemna minor, Ecotoxicology17(1): 29-35. ","887","USE THIS VERSION",null,"Technical grade, 95% purity","Technical grade, 95% purity"]
["Freshwater","Olivia added in",63,0.61165048543689315,"Selenastrum capricornutum","Exponential growth phase","48 hours","Population: Relative growth rate (Chloropyll)","EC50","595 ug/L","Munkegaard,M., M. Abbaspoor, and N. Cedergreen, 2008. Organophosphorous Insecticides as Herbicide Synergists on the Green Algae Pseudokirchneriella subcapitata and the Aquatic Plant Lemna minor, Ecotoxicology17(1): 29-35. ","887","USE THIS VERSION","TERBUTHYLAZINE","Technical grade, 99% purity","Do not use not the right test chemical"]
["Freshwater","888-1-GD",79,0.76699029126213591,"Selenastrum capricornutum","Exponential growth phase","72 hours","Population: Growth (chlorophyll-a)","IC50","611.8 ug/L","Fai,P.B., A. Grant, and B. Reid, 2007. Chlorophyll a Fluorescence as a Biomarker for Rapid Toxicity Assessment,  Environ. Toxicol. Chem.26(7): 1520-1531. ","888","USE THIS VERSION",null,"Pestanal analytical standards","Technical grade, 95% purity"]
["Freshwater","Olivia added in",79,0.76699029126213591,"Selenastrum capricornutum","Exponential growth phase","72 hours","Population: Growth (chlorophyll-a)","IC50","81.4 ug/L","Fai,P.B., A. Grant, and B. Reid, 2007. Chlorophyll a Fluorescence as a Biomarker for Rapid Toxicity Assessment,  Environ. Toxicol. Chem.26(7): 1520-1531. ",null,"USE THIS VERSION","ATRAZINE","Pestanal analytical standards","Do not use not the right test chemical"]
["Freshwater","Olivia added in",79,0.76699029126213591,"Selenastrum capricornutum","Exponential growth phase","72 hours","Population: Growth (chlorophyll-a)","IC50","10.5 ug/L","Fai,P.B., A. Grant, and B. Reid, 2007. Chlorophyll a Fluorescence as a Biomarker for Rapid Toxicity Assessment,  Environ. Toxicol. Chem.26(7): 1520-1531. ",null,"USE THIS VERSION","DIURON","Pestanal analytical standards","Do not use not the right test chemical"]
["Freshwater","886-1-GD",59,0.58281553398058294,"Rhinella arenarum","Tadpoles","48 hours","Mortality: Survival","LC50","105.56 ug/L","Lajmanovich,R.C., C.M. Junges, A.M. Attademo, P.M. Peltzer, M.C. Cabagna-Zenklusen, and A. Basso, 2013. Individual and Mixture Toxicity of Commercial Formulations Containing Glyphosate, Metsulfuron-Methyl, Bispyribac-Sodium, and Picloram on Rhinella arenarum Tadpoles, Water Air Soil Pollut.224(3): 1-13. ","886","Do Not Use - FORMULATION",null,"Formulation - 60% active ingredient","Do not use - Formulation - 60% active ingredient"]
["Freshwater","886-2-GD",59,0.58281553398058294,"Rhinella arenarum","Tadpoles","48 hours","Mortality: Survival","LOEC","80 ug/L","Lajmanovich,R.C., C.M. Junges, A.M. Attademo, P.M. Peltzer, M.C. Cabagna-Zenklusen, and A. Basso, 2013. Individual and Mixture Toxicity of Commercial Formulations Containing Glyphosate, Metsulfuron-Methyl, Bispyribac-Sodium, and Picloram on Rhinella arenarum Tadpoles, Water Air Soil Pollut.224(3): 1-13. ","886","Do Not Use - FORMULATION",null,"Formulation - 60% active ingredient","Do not use - Formulation - 60% active ingredient"]
["Freshwater","886-3-GD",60,0.58252427184466016,"Rhinella arenarum","Tadpoles","48 hours","Mortality: Survival","NOEC","160 ug/L","Lajmanovich,R.C., C.M. Junges, A.M. Attademo, P.M. Peltzer, M.C. Cabagna-Zenklusen, and A. Basso, 2013. Individual and Mixture Toxicity of Commercial Formulations Containing Glyphosate, Metsulfuron-Methyl, Bispyribac-Sodium, and Picloram on Rhinella arenarum Tadpoles, Water Air Soil Pollut.224(3): 1-13. ","886","Do Not Use - FORMULATION",null,"Formulation - 60% active ingredient","Do not use - Formulation - 60% active ingredient"]
["Freshwater","834-3",72,0.69902912621359226,"Chlorella pyrenoidosa","non-stated","96 hours","Population Abundance","EC50","14206 ug/L","Ma, J., Xu, L. and Wang, S., 2002. A Quick, Simple, and Accurate Method of Screening Herbicide Activity Using Green Algae Cell Suspension Cultures, Weed Sci.50(5): 555-559. ","834",null,"From Metolachlor QAQC spreadsheet"," 90% technical product ","Use this is technical product not a formulation"]
["Freshwater","837-3",68,0.66019417475728159,"Raphidocelis subcapitata","non-stated","96 hours","Population Abundance","EC50","24696 ug/L","Ma, J., Wang, S., Wang, P., Ma, L., Chen, X. and Xu, R., 2006. Toxicity Assessment of 40 Herbicides to the Green Alga Raphidocelis subcapitata, Ecotoxicol. Environ. Saf.63(3): 456-462. ","837",null,"From Metolachlor QAQC spreadsheet"," 90% technical product ","Use this is technical product not a formulation"]
["Freshwater","866-4",55,0.56299999999999994,"Myriophyllum aquaticum","not specified","14 days","Population: Abundance: ChlA","LOEC","2.7 ug/L","Turgut,C., 2007. The Impact of Pesticides Toward Parrotfeather when Applied at the Predicted Environmental Concentration, Chemosphere66(3): 469-473. ","866",null,"From 2, 4-D QAQC spreadsheet","Formulation, 20% suspension concentrate","Formulation, 20% suspension concentrate"]
["Freshwater","867-2",59,0.57281553398058249,"Myriophyllum aquaticum","not specified","14 days","Population: Abundance: ChlA","EC50","0.624 ug/L","Turgut,C., and A. Fomin, 2002. Sensitivity of the Rooted Macrophyte Myriophyllum aquaticum (Vell.) Verdcourt to Seventeen Pesticides Determined on the Basis of EC50, Bull. Environ. Contam. Toxicol.69:601-608.  ","867",null,"From 2, 4-D QAQC spreadsheet","Formulation, 20% suspension concentrate","Formulation, 20% suspension concentrate"]
["Freshwater","867-5",59,0.57281553398058249,"Myriophyllum aquaticum","not specified","14 days","Population: Growth: Total Shoot Length","EC50","4 ug/L","Turgut,C., and A. Fomin, 2002. Sensitivity of the Rooted Macrophyte Myriophyllum aquaticum (Vell.) Verdcourt to Seventeen Pesticides Determined on the Basis of EC50, Bull. Environ. Contam. Toxicol.69:601-608.  ","867",null,"From 2, 4-D QAQC spreadsheet","Formulation, 20% suspension concentrate","Formulation, 20% suspension concentrate"]
["Freshwater","866-3-GD",55,0.53398058252427205,"Myriophyllum aquaticum","not specified","14 days","Growth: Shoot Length","NOEC (EC18.6)","2.7 ug/L","Turgut,C., 2007. The Impact of Pesticides Toward Parrotfeather when Applied at the Predicted Environmental Concentration, Chemosphere66(3): 469-473. ","866","Do Not Use - FORMULA","From 2, 4-D QAQC spreadsheet","Formulation, 20% suspension concentrate","Formulation, 20% suspension concentrate"]
["Freshwater","867-2-GD",57,0.55339805825242716,"Myriophyllum aquaticum","Axillary buds (3cm long)","14 days","Population: Abundance (chlorophyll-a)","EC50","0.624 ug/L","Turgut,C., and A. Fomin, 2002. Sensitivity of the Rooted Macrophyte Myriophyllum aquaticum (Vell.) Verdcourt to Seventeen Pesticides Determined on the Basis of EC50, Bull. Environ. Contam. Toxicol.69:601-608.  ","867","Do Not Use - FORMULA","From 2, 4-D QAQC spreadsheet","Formulation, 20% suspension concentrate","Formulation, 20% suspension concentrate"]
["Freshwater","867-5-GD",57,0.55339805825242716,"Myriophyllum aquaticum","Axillary buds (3cm long)","14 days","Population: Abundance (chlorophyll-b)","EC50","0.882 ug/L","Turgut,C., and A. Fomin, 2002. Sensitivity of the Rooted Macrophyte Myriophyllum aquaticum (Vell.) Verdcourt to Seventeen Pesticides Determined on the Basis of EC50, Bull. Environ. Contam. Toxicol.69:601-608.  ","867","Do Not Use - FORMULA","From 2, 4-D QAQC spreadsheet","Formulation, 20% suspension concentrate","Formulation, 20% suspension concentrate"]
["Freshwater","867-9-GD",52,0.50485436893203883,"Myriophyllum aquaticum","Axillary buds (3cm long)","14 days","Population: Shoot length","EC50","7 ug/L","Turgut,C., and A. Fomin, 2002. Sensitivity of the Rooted Macrophyte Myriophyllum aquaticum (Vell.) Verdcourt to Seventeen Pesticides Determined on the Basis of EC50, Bull. Environ. Contam. Toxicol.69:601-608.  ","867","Do Not Use - FORMULA","From 2, 4-D QAQC spreadsheet","Formulation, 20% suspension concentrate","Formulation, 20% suspension concentrate"]
["Freshwater","867-10-GD",52,0.50485436893203883,"Myriophyllum aquaticum","Axillary buds (3cm long)","14 days","Population: Total Root Length","EC50","4 ug/L","Turgut,C., and A. Fomin, 2002. Sensitivity of the Rooted Macrophyte Myriophyllum aquaticum (Vell.) Verdcourt to Seventeen Pesticides Determined on the Basis of EC50, Bull. Environ. Contam. Toxicol.69:601-608.  ","867","Do Not Use - FORMULA","From 2, 4-D QAQC spreadsheet","Formulation, 20% suspension concentrate","Formulation, 20% suspension concentrate"]
["Freshwater","874-5",70,0.67961165048543692,"Lemna minor","not-stated","7 days","Population: Relative Growth Rate","EC10","0.37 ug/L","Cedergreen,N., and J.C. Streibig, 2005. The Toxicity of Herbicides to Non-Target Aquatic Plants and Algae: Assessment of Predictive Factors and Hazard, Pest Manag. Sci.61(12): 1152-1160. ","874",null,"From Glyphosate QAQC spreadsheet","Technical purity 98.5%","Technical purity 98.5%"]
["Freshwater","874-6",70,0.67961165048543692,"Lemna minor","not-stated","7 days","Population: Relative Growth Rate","EC50","0.79 ug/L","Cedergreen,N., and J.C. Streibig, 2005. The Toxicity of Herbicides to Non-Target Aquatic Plants and Algae: Assessment of Predictive Factors and Hazard, Pest Manag. Sci.61(12): 1152-1160. ","874",null,"From Glyphosate QAQC spreadsheet","Technical purity 98.5%","Technical purity 98.5%"]
["Freshwater","874-12",70,0.67961165048543692,"Pseudokirchneriella subcapitata","not-stated","48 hours","Population: Relative Growth Rate","EC10","292 ug/L","Cedergreen,N., and J.C. Streibig, 2005. The Toxicity of Herbicides to Non-Target Aquatic Plants and Algae: Assessment of Predictive Factors and Hazard, Pest Manag. Sci.61(12): 1152-1160. ","874",null,"From Glyphosate QAQC spreadsheet","Technical purity 98.5%","Technical purity 98.5%"]
["Freshwater","874-13",70,0.67961165048543692,"Pseudokirchneriella subcapitata","not-stated","48 hours","Population: Relative Growth Rate","EC50","677 ug/L","Cedergreen,N., and J.C. Streibig, 2005. The Toxicity of Herbicides to Non-Target Aquatic Plants and Algae: Assessment of Predictive Factors and Hazard, Pest Manag. Sci.61(12): 1152-1160. ","874",null,"From Glyphosate QAQC spreadsheet","Technical purity 98.5%","Technical purity 98.5%"]
["Freshwater","618-1",72,0.69902912621359226,"Chlorella pyrenoidosa","not stated","96 hours","Growth: Inhibition","EC50","14.220 mg/L","Ma,J., W. Liang, L. Xu, S. Wang, Y. Wei, and J. Lu. 2001. Acute Toxicity of 33 Herbicides to the Green Alga Chlorella pyrenoidosa, Bull. Environ. Contam. Toxicol.66(4): 536-541. ","614",null,"From Glyphosate QAQC spreadsheet"," 90% technical product ","90% technical material"]
["Freshwater","614-1",72,0.69902912621359226,"Scenedesmus obliquus",null,"96 hours","Growth: Inhibition","EC50","72.782 mg/L","Ma, J. 2002. Differential Sensitivity to 30 Herbicides Among Populations of Two Green Algae Scenedesmus obliquus and Chlorella pyrenoidosa, Bull. Environ. Contam. Toxicol.68(2): 275-281. ",618,null,"From Glyphosate QAQC spreadsheet"," 90% technical product ","90% technical material"]
["Freshwater","927-1",68,0.66019417475728159,"Lemna gibba","not-stated","7 days","Growth rate: Frond count","EC10","0.27 ug/L","Rosenkrantz, R.T., Cedergreen, N., Baun, A., Kusk, K.O., 2013. Influence of pH, light cycle, and temperature on ecotoxicity of four sulfonylurea herbicides towards Lemna gibba. Ecotoxicology, 22(1): 33-41.","927","Do Not Use - Use QAQC Version below","Continuous light","Purity of 90-96%","Technical material  Purity of 90-96%"]
["Freshwater","927-2",68,0.66019417475728159,"Lemna gibba","not-stated","7 days","Growth rate: Frond count","EC50","0.37 ug/L","Rosenkrantz, R.T., Cedergreen, N., Baun, A., Kusk, K.O., 2013. Influence of pH, light cycle, and temperature on ecotoxicity of four sulfonylurea herbicides towards Lemna gibba. Ecotoxicology, 22(1): 33-41.","927","Do Not Use - Use QAQC Version below","Continuous light","Purity of 90-96%","Technical material  Purity of 90-96%"]
["Freshwater","927-3",64,0.62135922330097082,"Lemna gibba","not-stated","7 days","Growth rate: Frond count","EC10","0.16 ug/L","Rosenkrantz, R.T., Cedergreen, N., Baun, A., Kusk, K.O., 2013. Influence of pH, light cycle, and temperature on ecotoxicity of four sulfonylurea herbicides towards Lemna gibba. Ecotoxicology, 22(1): 33-41.","927","Do Not Use - Use QAQC Version below","12:12 hour, light:dark cycle","Purity of 90-96%","Technical material  Purity of 90-96%"]
["Freshwater","927-4",64,0.62135922330097082,"Lemna gibba","not-stated","7 days","Growth rate: Frond count","EC50","0.50 ug/L","Rosenkrantz, R.T., Cedergreen, N., Baun, A., Kusk, K.O., 2013. Influence of pH, light cycle, and temperature on ecotoxicity of four sulfonylurea herbicides towards Lemna gibba. Ecotoxicology, 22(1): 33-41.","927","Do Not Use - Use QAQC Version below","12:12 hour, light:dark cycle","Purity of 90-96%","Technical material  Purity of 90-96%"]
["Freshwater","928-1",79,0.76699029126213591,"Lemna minor","Exponential growth phase (colony with three fronds","42 days","Growth rate: Theoretical frond area","EC50","0.90 ug/L","Boxall, A.B., Fogg, L.A., Ashauer, R., Bowles, T., Sinclair, C.J., Colyer, A., Brain, RA. 2013.  Effects of repeated pulsed herbicide exposures on the growth of aquatic macrophyt,  Environmental Toxicology and Chemist, 32(1): 193-200.","928",null,null,"Analytical grade","Analytical grade"]
["Freshwater","928-2",79,0.76699029126213591,"Lemna minor","Exponential growth phase (colony with three fronds","42 days","Growth rate: Theoretical frond area","NOEC","0.1 ug/L","Boxall, A.B., Fogg, L.A., Ashauer, R., Bowles, T., Sinclair, C.J., Colyer, A., Brain, RA. 2013.  Effects of repeated pulsed herbicide exposures on the growth of aquatic macrophyt,  Environmental Toxicology and Chemist, 32(1): 193-200.","928",null,null,"Analytical grade","Analytical grade"]
["Freshwater","928-3",79,0.76699029126213591,"Lemna minor","Exponential growth phase (colony with three fronds","42 days","Growth rate: Theoretical frond area","LOEC","0.5 ug/L","Boxall, A.B., Fogg, L.A., Ashauer, R., Bowles, T., Sinclair, C.J., Colyer, A., Brain, RA. 2013.  Effects of repeated pulsed herbicide exposures on the growth of aquatic macrophyt,  Environmental Toxicology and Chemist, 32(1): 193-200.","928",null,null,"Analytical grade","Analytical grade 99.5% purity"]
["Freshwater","929-1",75,0.72815533980582525,"Scenedesmus vacuolatus","Young algal cells - beginning of growth cycle","24 hours","Population abundance: Cell count","EC05","0.17 uM","Junghans, M., Backhaus, T., Faust, M., Scholze, M., Grimme, L.H.  2003. Toxicity of sulfonylurea herbicides to the green alga Scenedesmus vacuolatus: Predictability of combination effects. Bulletin of Environmental Contamination and Toxicology, 71(3): 585 – 593. ","929","Do Not Use - Use QAQC Version below",null,"Analytical purity","Analytical grade 99.5% purity"]
["Freshwater","929-2",75,0.72815533980582525,"Scenedesmus vacuolatus","Young algal cells - beginning of growth cycle","24 hours","Population abundance: Cell count","EC50","3.05 uM","Junghans, M., Backhaus, T., Faust, M., Scholze, M., Grimme, L.H.  2003. Toxicity of sulfonylurea herbicides to the green alga Scenedesmus vacuolatus: Predictability of combination effects. Bulletin of Environmental Contamination and Toxicology, 71(3): 585 – 593. ","929","Do Not Use - Use QAQC Version below",null,"Analytical purity","Analytical grade 99.5% purity"]
["Freshwater","929-3",71,0.68932038834951459,"Scenedesmus vacuolatus","Young algal cells - beginning of growth cycle","24 hours","Population abundance: Cell count","NOEC","0.433 uM","Junghans, M., Backhaus, T., Faust, M., Scholze, M., Grimme, L.H.  2003. Toxicity of sulfonylurea herbicides to the green alga Scenedesmus vacuolatus: Predictability of combination effects. Bulletin of Environmental Contamination and Toxicology, 71(3): 585 – 593. ","929","Do Not Use - Use QAQC Version below",null,"Analytical purity","Analytical grade 99.5% purity"]
["Freshwater","930-1",77,0.74757281553398058,"Lemna gibba","Exponential growth culture","7 days","Growth: Frond number","EC50","0.060 ug/L","Rosenkrantz, R.T., Baun, A., Kusk, K.O. 2013. Growth inhibition and recovery of Lemna gibba after pulse exposure to sulfonylurea herbicides, Ecotoxicology and Environmental Safety, 89: 89 – 94.  ","930","Do Not Use - Use QAQC Version below",null,"Purity of 90-96%","Technical material  Purity of 90-96%"]
["Freshwater","927-1-OK",77,0.74757281553398058,"Lemna gibba","not-stated","7 days","Growth rate: Frond count","EC10","0.27 ug/L","Rosenkrantz, R.T., Cedergreen, N., Baun, A., Kusk, K.O., 2013. Influence of pH, light cycle, and temperature on ecotoxicity of four sulfonylurea herbicides towards Lemna gibba. Ecotoxicology, 22(1): 33-41.","927","USE THIS VERSION","Continuous light","Purity of 90-96%","Technical material  Purity of 90-96%"]
["Freshwater","927-2-OK",77,0.74757281553398058,"Lemna gibba","not-stated","7 days","Growth rate: Frond count","EC50","0.37 ug/L","Rosenkrantz, R.T., Cedergreen, N., Baun, A., Kusk, K.O., 2013. Influence of pH, light cycle, and temperature on ecotoxicity of four sulfonylurea herbicides towards Lemna gibba. Ecotoxicology, 22(1): 33-41.","927","USE THIS VERSION","Continuous light","Purity of 90-96%","Technical material  Purity of 90-96%"]
["Freshwater","927-3-OK",73,0.70873786407766992,"Lemna gibba","not-stated","7 days","Growth rate: Frond count","EC10","0.16 ug/L","Rosenkrantz, R.T., Cedergreen, N., Baun, A., Kusk, K.O., 2013. Influence of pH, light cycle, and temperature on ecotoxicity of four sulfonylurea herbicides towards Lemna gibba. Ecotoxicology, 22(1): 33-41.","927","USE THIS VERSION","12:12 hour, light:dark cycle","Purity of 90-96%","Technical material  Purity of 90-96%"]
["Freshwater","927-4-OK",73,0.70873786407766992,"Lemna gibba","not-stated","7 days","Growth rate: Frond count","EC50","0.50 ug/L","Rosenkrantz, R.T., Cedergreen, N., Baun, A., Kusk, K.O., 2013. Influence of pH, light cycle, and temperature on ecotoxicity of four sulfonylurea herbicides towards Lemna gibba. Ecotoxicology, 22(1): 33-41.","927","USE THIS VERSION","12:12 hour, light:dark cycle","Purity of 90-96%","Technical material  Purity of 90-96%"]
["Freshwater","OK added in",73,0.70873786407766992,"Lemna gibba","not-stated","7 days","Growth rate: Frond count","EC50","0.64 ug/L","Rosenkrantz, R.T., Cedergreen, N., Baun, A., Kusk, K.O., 2013. Influence of pH, light cycle, and temperature on ecotoxicity of four sulfonylurea herbicides towards Lemna gibba. Ecotoxicology, 22(1): 33-41.","927","USE THIS VERSION",null,"Purity of 90-96%","Technical material  Purity of 90-96%"]
["Freshwater","OK added in",73,0.70873786407766992,"Lemna gibba","not-stated","7 days","Growth rate: Frond count","EC10","0.12 ug/L","Rosenkrantz, R.T., Cedergreen, N., Baun, A., Kusk, K.O., 2013. Influence of pH, light cycle, and temperature on ecotoxicity of four sulfonylurea herbicides towards Lemna gibba. Ecotoxicology, 22(1): 33-41.","927","USE THIS VERSION",null,"Purity of 90-96%","Technical material  Purity of 90-96%"]
["Freshwater","OK added in",73,0.70873786407766992,"Lemna gibba","not-stated","7 days","Growth rate: Frond count","EC10","0.27 ug/L","Rosenkrantz, R.T., Cedergreen, N., Baun, A., Kusk, K.O., 2013. Influence of pH, light cycle, and temperature on ecotoxicity of four sulfonylurea herbicides towards Lemna gibba. Ecotoxicology, 22(1): 33-41.","927","USE THIS VERSION",null,"Purity of 90-96%","Technical material  Purity of 90-96%"]
["Freshwater","OK added in",73,0.70873786407766992,"Lemna gibba","not-stated","7 days","Growth rate: Frond count","EC50","1.4 ug/L","Rosenkrantz, R.T., Cedergreen, N., Baun, A., Kusk, K.O., 2013. Influence of pH, light cycle, and temperature on ecotoxicity of four sulfonylurea herbicides towards Lemna gibba. Ecotoxicology, 22(1): 33-41.","927","USE THIS VERSION",null,"Purity of 90-96%","Technical material  Purity of 90-96%"]
["Freshwater","OK added in",73,0.70873786407766992,"Lemna gibba","not-stated","11 Days","Growth rate: Frond count","EC10","0.043 ug/L","Rosenkrantz, R.T., Cedergreen, N., Baun, A., Kusk, K.O., 2013. Influence of pH, light cycle, and temperature on ecotoxicity of four sulfonylurea herbicides towards Lemna gibba. Ecotoxicology, 22(1): 33-41.","927","Do Not Use - After discussions with RM and MW, agreed not to use this inaccurate data point.","low temp","Purity of 90-96%","Technical material  Purity of 90-96%"]
["Freshwater","OK added in",73,0.70873786407766992,"Lemna gibba","not-stated","11 Days","Growth rate: Frond count","EC50","0.68 ug/L","Rosenkrantz, R.T., Cedergreen, N., Baun, A., Kusk, K.O., 2013. Influence of pH, light cycle, and temperature on ecotoxicity of four sulfonylurea herbicides towards Lemna gibba. Ecotoxicology, 22(1): 33-41.","927","USE THIS VERSION","low temp","Purity of 90-96%","Technical material  Purity of 90-96%"]
["Freshwater","OK added in",73,0.70873786407766992,"Lemna gibba","Exponential growth phase","7 days","Biomass yield: Increase in fronds","EC50","0.06 ug/L","Rosenkrantz, R.T., Baun, A., Kusk, K.O. 2013. Growth inhibition and recovery of Lemna gibba after pulse exposure to sulfonylurea herbicides, Ecotoxicology and Environmental Safety, 89: 89 – 94.  ","927","USE THIS VERSION","OECD test","Purity of 90-96%","Technical material  Purity of 90-96%"]
["Freshwater","930-1-OK",70,0.67961165048543692,"Lemna gibba","Exponential growth phase","7 days","Population: Growth Rate (Frond number)","EC50","0.37 ug/L","Rosenkrantz, R.T., Baun, A., Kusk, K.O. 2013. Growth inhibition and recovery of Lemna gibba after pulse exposure to sulfonylurea herbicides, Ecotoxicology and Environmental Safety, 89: 89 – 94.  ","930","USE THIS VERSION","OECD test","Purity of 90-96%","Technical material  Purity of 90-96%"]
["Freshwater","OK added in",70,0.67961165048543692,"Lemna gibba","Exponential growth phase","7 days","Biomass yield: Increase in fronds","EC50","0.36 ug/L","Rosenkrantz, R.T., Baun, A., Kusk, K.O. 2013. Growth inhibition and recovery of Lemna gibba after pulse exposure to sulfonylurea herbicides, Ecotoxicology and Environmental Safety, 89: 89 – 94.  ","930","Do Not Use - Pulse test","Pulse test 24 hours","Purity of 90-96%","Technical material  Purity of 90-96%"]
["Freshwater","928-1-OK",72,0.69902912621359226,"Lemna minor","Exponential growth phase","2 days","Growth rate: Theoretical frond area","NOEC","0.1 ug/L","Boxall, A.B., Fogg, L.A., Ashauer, R., Bowles, T., Sinclair, C.J., Colyer, A., Brain, RA. 2013.  Effects of repeated pulsed herbicide exposures on the growth of aquatic macrophyt,  Environmental Toxicology and Chemist, 32(1): 193-200.","928","Do Not Use - Pulse test",null,"Analytical grade","Analytical grade"]
["Freshwater","928-2-OK",72,0.69902912621359226,"Lemna minor","Exponential growth phase","2 days","Growth rate: Theoretical frond area","LOEC","0.5 ug/L","Boxall, A.B., Fogg, L.A., Ashauer, R., Bowles, T., Sinclair, C.J., Colyer, A., Brain, RA. 2013.  Effects of repeated pulsed herbicide exposures on the growth of aquatic macrophyt,  Environmental Toxicology and Chemist, 32(1): 193-200.","928","Do Not Use - Pulse test",null,"Analytical grade","Analytical grade"]
["Freshwater","928-3-OK",77,0.74757281553398058,"Lemna minor","Exponential growth phase","2 days","Growth rate: Theoretical frond area","EC50","0.90 ug/L","Boxall, A.B., Fogg, L.A., Ashauer, R., Bowles, T., Sinclair, C.J., Colyer, A., Brain, RA. 2013.  Effects of repeated pulsed herbicide exposures on the growth of aquatic macrophyt,  Environmental Toxicology and Chemist, 32(1): 193-200.","928","Do Not Use - Pulse test",null,"Analytical grade","Analytical grade"]
["Freshwater","928-4-OK",72,0.69902912621359226,"Lemna minor","Exponential growth phase","4 days","Growth rate: Theoretical frond area","NOEC","0.1 ug/L","Boxall, A.B., Fogg, L.A., Ashauer, R., Bowles, T., Sinclair, C.J., Colyer, A., Brain, RA. 2013.  Effects of repeated pulsed herbicide exposures on the growth of aquatic macrophyt,  Environmental Toxicology and Chemist, 32(1): 193-200.","928","Do Not Use - Pulse test",null,"Analytical grade","Analytical grade"]
["Freshwater","928-5-OK",72,0.69902912621359226,"Lemna minor","Exponential growth phase","4 days","Growth rate: Theoretical frond area","LOEC","0.5 ug/L","Boxall, A.B., Fogg, L.A., Ashauer, R., Bowles, T., Sinclair, C.J., Colyer, A., Brain, RA. 2013.  Effects of repeated pulsed herbicide exposures on the growth of aquatic macrophyt,  Environmental Toxicology and Chemist, 32(1): 193-200.","928","Do Not Use - Pulse test",null,"Analytical grade","Analytical grade"]
["Freshwater","928-6-OK",77,0.74757281553398058,"Lemna minor","Exponential growth phase","4 days","Growth rate: Theoretical frond area","EC50","0.90 ug/L","Boxall, A.B., Fogg, L.A., Ashauer, R., Bowles, T., Sinclair, C.J., Colyer, A., Brain, RA. 2013.  Effects of repeated pulsed herbicide exposures on the growth of aquatic macrophyt,  Environmental Toxicology and Chemist, 32(1): 193-200.","928","Do Not Use - Pulse test",null,"Analytical grade","Analytical grade"]
["Freshwater","928-7-OK",77,0.74757281553398058,"Lemna minor","Exponential growth phase","42 days","Growth rate: Theoretical frond area","EC50","0.99 ug/L","Boxall, A.B., Fogg, L.A., Ashauer, R., Bowles, T., Sinclair, C.J., Colyer, A., Brain, RA. 2013.  Effects of repeated pulsed herbicide exposures on the growth of aquatic macrophyt,  Environmental Toxicology and Chemist, 32(1): 193-200.","928","USE THIS VERSION","Continuous exposure test","Analytical grade","Analytical grade"]
["Freshwater","928-8-OK",72,0.69902912621359226,"Lemna minor","Exponential growth phase","42 days","Growth rate: Theoretical frond area","NOEC","0.1 ug/L","Boxall, A.B., Fogg, L.A., Ashauer, R., Bowles, T., Sinclair, C.J., Colyer, A., Brain, RA. 2013.  Effects of repeated pulsed herbicide exposures on the growth of aquatic macrophyt,  Environmental Toxicology and Chemist, 32(1): 193-200.","928","USE THIS VERSION","Continuous exposure test","Analytical grade","Analytical grade"]
["Freshwater","928-9-OK",72,0.69902912621359226,"Lemna minor","Exponential growth phase","42 days","Growth rate: Theoretical frond area","LOEC","0.5 ug/L","Boxall, A.B., Fogg, L.A., Ashauer, R., Bowles, T., Sinclair, C.J., Colyer, A., Brain, RA. 2013.  Effects of repeated pulsed herbicide exposures on the growth of aquatic macrophyt,  Environmental Toxicology and Chemist, 32(1): 193-200.","928","USE THIS VERSION","Continuous exposure test","Analytical grade","Analytical grade"]
["Freshwater","929-1-OK",65,0.6310679611650486,"Scenedesmus vacuolatus","not stated","24 hours","Reproduction Inhibition: Cell Number","EC05","0.17 uM","Junghans, M., Backhaus, T., Faust, M., Scholze, M., Grimme, L.H.  2003. Toxicity of sulfonylurea herbicides to the green alga Scenedesmus vacuolatus: Predictability of combination effects. Bulletin of Environmental Contamination and Toxicology, 71(3): 585 – 593. ","929","USE THIS VERSION",null,"Analytical purity","Analytical grade 99.5% purity"]
["Freshwater","929-2-OK",65,0.6310679611650486,"Scenedesmus vacuolatus","not stated","24 hours","Reproduction Inhibition: Cell Number","EC50","3.05 uM","Junghans, M., Backhaus, T., Faust, M., Scholze, M., Grimme, L.H.  2003. Toxicity of sulfonylurea herbicides to the green alga Scenedesmus vacuolatus: Predictability of combination effects. Bulletin of Environmental Contamination and Toxicology, 71(3): 585 – 593. ","929","USE THIS VERSION",null,"Analytical purity","Analytical grade 99.5% purity"]
["Freshwater","929-3-OK",60,0.58252427184466016,"Scenedesmus vacuolatus","not stated","24 hours","Reproduction Inhibition: Cell Number","NOEC","0.433 uM","Junghans, M., Backhaus, T., Faust, M., Scholze, M., Grimme, L.H.  2003. Toxicity of sulfonylurea herbicides to the green alga Scenedesmus vacuolatus: Predictability of combination effects. Bulletin of Environmental Contamination and Toxicology, 71(3): 585 – 593. ","929","USE THIS VERSION",null,"Analytical purity","Analytical grade 99.5% purity"]
["Freshwater","887-1-GD-reentered",72,0.69902912621359226,"Lemna minor","1 Frond","7 days","Growth rate: Frond area","EC50","0.51 ug/L","Munkegaard,M., M. Abbaspoor, and N. Cedergreen, 2008. Organophosphorous Insecticides as Herbicide Synergists on the Green Algae Pseudokirchneriella subcapitata and the Aquatic Plant Lemna minor, Ecotoxicology17(1): 29-35. ","887","Do Not Use - Use QAQC Version above",null,"Technical grade, 95% purity","Technical grade, 95% purity"]
["Freshwater","887-2-GD-reentered",72,0.69902912621359226,"Pseudokircheriella subcapitata","Exponential growth phase","48 hours","Growth rate: Frond area","EC50","1934 ug/L","Munkegaard,M., M. Abbaspoor, and N. Cedergreen, 2008. Organophosphorous Insecticides as Herbicide Synergists on the Green Algae Pseudokirchneriella subcapitata and the Aquatic Plant Lemna minor, Ecotoxicology17(1): 29-35. ","887","Do Not Use - Use QAQC Version above",null,"Technical grade, 95% purity","Technical grade, 95% purity"]
["Freshwater","889-1-GD-Reentered",53,0.5145631067961165,"Myriophyllum spicatum","Apical shoot (3.60g - 3.65g)","14 days","Population: Biomass Dry Weight","NOEC","20 ug/L","Wendt-Rasch,L., P. Pirzadeh, and P. Woin, 2003. Effects of Metsulfuron Methyl and Cypermethrin Exposure on Freshwater Model Ecosystems, Aquat. Toxicol.63(3): 243-256. ","889","USE THIS VERSION",null,"Standard analytical grade","Standard analytical grade"]
["Freshwater","889-2-GD-Reentered",53,0.5145631067961165,"Elodea canadensis","Apical shoot (WW 2.30g - 2.35g)","14 days","Population: Biomass Dry Weight","NOEC","20 ug/L","Wendt-Rasch,L., P. Pirzadeh, and P. Woin, 2003. Effects of Metsulfuron Methyl and Cypermethrin Exposure on Freshwater Model Ecosystems, Aquat. Toxicol.63(3): 243-256. ","889","USE THIS VERSION",null,"Standard analytical grade","Standard analytical grade"]
["Freshwater","889-3-GD-Reentered",53,0.5145631067961165,"Myriophyllum spicatum","Apical shoot (3.60g - 3.65g)","14 days","Development: Root Occurence","LOEC","1 ug/L","Wendt-Rasch,L., P. Pirzadeh, and P. Woin, 2003. Effects of Metsulfuron Methyl and Cypermethrin Exposure on Freshwater Model Ecosystems, Aquat. Toxicol.63(3): 243-256. ","889","USE THIS VERSION",null,"Standard analytical grade","Standard analytical grade"]
["Freshwater","889-4-GD-Reentered",53,0.5145631067961165,"Elodea canadensis","Apical shoot (WW 2.30g - 2.35g)","14 days","Development: Root Occurence","NOEC","20 ug/L","Wendt-Rasch,L., P. Pirzadeh, and P. Woin, 2003. Effects of Metsulfuron Methyl and Cypermethrin Exposure on Freshwater Model Ecosystems, Aquat. Toxicol.63(3): 243-256. ","889","USE THIS VERSION",null,"Standard analytical grade","Standard analytical grade"]
["Freshwater","889-5-GD-Reentered",64,0.62135922330097082,"Elodea canadensis","Apical shoot (19.5 cm)","8 days","Growth: Shoot length","NOEC","0.054 ug/L","Wendt-Rasch,L., P. Pirzadeh, and P. Woin, 2003. Effects of Metsulfuron Methyl and Cypermethrin Exposure on Freshwater Model Ecosystems, Aquat. Toxicol.63(3): 243-256. ","889","USE THIS VERSION",null,"Standard analytical grade","Standard analytical grade"]
["Freshwater","889-6-GD-Reentered",64,0.62135922330097082,"Elodea canadensis","Apical shoot (19.5 cm)","8 days","Growth: Shoot length","LOEC","0.1 ug/L","Wendt-Rasch,L., P. Pirzadeh, and P. Woin, 2003. Effects of Metsulfuron Methyl and Cypermethrin Exposure on Freshwater Model Ecosystems, Aquat. Toxicol.63(3): 243-256. ","889","USE THIS VERSION",null,"Standard analytical grade","Standard analytical grade"]
["Freshwater","Olivia added in",64,0.62135922330097082,"Myriophyllum spicatum","Apical shoot (19.5 cm)","8 days","Growth: Shoot length","LOEC","0.1 ug/L","Wendt-Rasch,L., P. Pirzadeh, and P. Woin, 2003. Effects of Metsulfuron Methyl and Cypermethrin Exposure on Freshwater Model Ecosystems, Aquat. Toxicol.63(3): 243-256. ","889","USE THIS VERSION",null,"Standard analytical grade","Standard analytical grade"]
["Freshwater","889-7-GD-Reentered",64,0.62135922330097082,"Elodea canadensis","Apical shoot (19.5 cm)","8 days","Growth: Shoot length","LOEC","0.2 ug/L","Wendt-Rasch,L., P. Pirzadeh, and P. Woin, 2003. Effects of Metsulfuron Methyl and Cypermethrin Exposure on Freshwater Model Ecosystems, Aquat. Toxicol.63(3): 243-256. ","889","USE THIS VERSION",null,"Standard analytical grade","Standard analytical grade"]
["Freshwater","889-8-GD-Reentered",64,0.62135922330097082,"Elodea canadensis","Apical shoot (19.5 cm)","8 days","Population: Biomass Dry Weight","NOEC","10 ug/L","Wendt-Rasch,L., P. Pirzadeh, and P. Woin, 2003. Effects of Metsulfuron Methyl and Cypermethrin Exposure on Freshwater Model Ecosystems, Aquat. Toxicol.63(3): 243-256. ","889","USE THIS VERSION",null,"Standard analytical grade","Standard analytical grade"]
["Freshwater","OK added in",64,0.62135922330097082,"Elodea canadensis","Apical shoot (19.5 cm)","8 days","Root growth","NOEC","1 ug/L","Wendt-Rasch,L., P. Pirzadeh, and P. Woin, 2003. Effects of Metsulfuron Methyl and Cypermethrin Exposure on Freshwater Model Ecosystems, Aquat. Toxicol.63(3): 243-256. ","889","USE THIS VERSION",null,"Standard analytical grade","Standard analytical grade"]
["Freshwater","940-1",65,0.6310679611650486,"Selenastrum capricornutum","Exponential growth culture","6 days","Population: Growth (flourescence as a measure of chlorophylla-)","EC20","0.18 umol/L","Nystrom, B. & Blanck, H. 1998. Effects of the sulfonylurea herbicide metsulfuron methyl on growth and macromolecular synthesis in the green alga Selemastrum capricornutum, Aquatic Toxicology, vol. 23, pp. 25 - 39. ","940","CAN'T USE - Concentration given in umol/L and no mention of chemical purity",null,"Concentration given in umol/L and no mention of chemical purity","No purity stated"]
["Freshwater","940-2",65,0.6310679611650486,"Selenastrum capricornutum","Exponential growth culture","6 days","Population: Growth (flourescence as a measure of chlorophylla-)","EC50","4.1 umol/L","Nystrom, B. & Blanck, H. 1998. Effects of the sulfonylurea herbicide metsulfuron methyl on growth and macromolecular synthesis in the green alga Selemastrum capricornutum, Aquatic Toxicology, vol. 23, pp. 25 - 39. ","940","CAN'T USE - Concentration given in umol/L and no mention of chemical purity",null,"Concentration given in umol/L and no mention of chemical purity","No purity stated"]
["Freshwater","941-1",75,0.72815533980582525,"Lemna minor","not stated","14 days","Growth rate: Dry weight","EC50","0.80 ug/L","Cedergreen, N., Streibig, J. C. & Spliid, N. H. 2004. Sensitivity of aquatic plants to the herbicide metsulfuron-methyl, Ecotxocology and Environmental Safety, vol. 57, pp. 153 - 161.","941",null,null,"Author responded - >98% purity","Author responded - >98% purity"]
["Freshwater","941-2",75,0.72815533980582525,"Lemna minor","not stated","14 days","Growth rate: Dry weight","EC50","1.13 ug/L","Cedergreen, N., Streibig, J. C. & Spliid, N. H. 2004. Sensitivity of aquatic plants to the herbicide metsulfuron-methyl, Ecotxocology and Environmental Safety, vol. 57, pp. 153 - 161.","941",null,null,"Author responded - >98% purity","Author responded - >98% purity"]
["Freshwater","941-3",75,0.72815533980582525,"Lemna trisulca","not stated","14 days","Growth rate: Dry weight","EC50","10.44 ug/L","Cedergreen, N., Streibig, J. C. & Spliid, N. H. 2004. Sensitivity of aquatic plants to the herbicide metsulfuron-methyl, Ecotxocology and Environmental Safety, vol. 57, pp. 153 - 161.","941",null,null,"Author responded - >98% purity","Author responded - >98% purity"]
["Freshwater","941-4",75,0.72815533980582525,"Ceratophyllum demersum","not stated","14 days","Growth rate: Dry weight","EC50","4.13 ug/L","Cedergreen, N., Streibig, J. C. & Spliid, N. H. 2004. Sensitivity of aquatic plants to the herbicide metsulfuron-methyl, Ecotxocology and Environmental Safety, vol. 57, pp. 153 - 161.",941,null,null,"Author responded - >98% purity","Author responded - >98% purity"]
["Freshwater","941-5",75,0.72815533980582525,"Lemna minor","not stated","14 days","Growth: Specific leaf area","EC50","0.18 ug/L","Cedergreen, N., Streibig, J. C. & Spliid, N. H. 2004. Sensitivity of aquatic plants to the herbicide metsulfuron-methyl, Ecotxocology and Environmental Safety, vol. 57, pp. 153 - 161.","941",null,null,"Author responded - >98% purity","Author responded - >98% purity"]
["Freshwater","941-6",75,0.72815533980582525,"Lemna minor","not stated","14 days","Growth: Specific leaf area","EC50","0.10 ug/L","Cedergreen, N., Streibig, J. C. & Spliid, N. H. 2004. Sensitivity of aquatic plants to the herbicide metsulfuron-methyl, Ecotxocology and Environmental Safety, vol. 57, pp. 153 - 161.","941",null,null,"Author responded - >98% purity","Author responded - >98% purity"]
["Freshwater","941-7",75,0.72815533980582525,"Lemna trisulca","not stated","14 days","Growth: Specific leaf area","EC50","0.62 ug/L","Cedergreen, N., Streibig, J. C. & Spliid, N. H. 2004. Sensitivity of aquatic plants to the herbicide metsulfuron-methyl, Ecotxocology and Environmental Safety, vol. 57, pp. 153 - 161.","941",null,null,"Author responded - >98% purity","Author responded - >98% purity"]
["Freshwater","941-8",75,0.72815533980582525,"Spirodela polyrrhiza","not stated","14 days","Growth: Specific leaf area","EC50","0.32 ug/L","Cedergreen, N., Streibig, J. C. & Spliid, N. H. 2004. Sensitivity of aquatic plants to the herbicide metsulfuron-methyl, Ecotxocology and Environmental Safety, vol. 57, pp. 153 - 161.","941",null,null,"Author responded - >98% purity","Author responded - >98% purity"]
["Freshwater","941-9",75,0.72815533980582525,"Spirodela polyrrhiza","not stated","14 days","Growth: Specific leaf area","EC50","0.19 ug/L","Cedergreen, N., Streibig, J. C. & Spliid, N. H. 2004. Sensitivity of aquatic plants to the herbicide metsulfuron-methyl, Ecotxocology and Environmental Safety, vol. 57, pp. 153 - 161.","941",null,null,"Author responded - >98% purity","Author responded - >98% purity"]
["Freshwater","941-10",75,0.72815533980582525,"Elodea canadensis","not stated","14 days","Growth: Specific leaf area","EC50","0.57 ug/L","Cedergreen, N., Streibig, J. C. & Spliid, N. H. 2004. Sensitivity of aquatic plants to the herbicide metsulfuron-methyl, Ecotxocology and Environmental Safety, vol. 57, pp. 153 - 161.","941",null,null,"Author responded - >98% purity","Author responded - >98% purity"]
["Freshwater","941-11",75,0.72815533980582525,"Elodea canadensis","not stated","14 days","Growth: Specific leaf area","EC50","0.79 ug/L","Cedergreen, N., Streibig, J. C. & Spliid, N. H. 2004. Sensitivity of aquatic plants to the herbicide metsulfuron-methyl, Ecotxocology and Environmental Safety, vol. 57, pp. 153 - 161.","941",null,null,"Author responded - >98% purity","Author responded - >98% purity"]
["Freshwater","941-12",75,0.72815533980582525,"Ceratophyllum demersum","not stated","14 days","Growth: Specific leaf area","EC50","0.20 ug/L","Cedergreen, N., Streibig, J. C. & Spliid, N. H. 2004. Sensitivity of aquatic plants to the herbicide metsulfuron-methyl, Ecotxocology and Environmental Safety, vol. 57, pp. 153 - 161.","941",null,null,"Author responded - >98% purity","Author responded - >98% purity"]
["Freshwater","941-13",75,0.72815533980582525,"Ceratophyllum submersum","not stated","14 days","Growth: Specific leaf area","EC50","2.21 ug/L","Cedergreen, N., Streibig, J. C. & Spliid, N. H. 2004. Sensitivity of aquatic plants to the herbicide metsulfuron-methyl, Ecotxocology and Environmental Safety, vol. 57, pp. 153 - 161.","941",null,null,"Author responded - >98% purity","Author responded - >98% purity"]
["Freshwater","941-14",75,0.72815533980582525,"Myriophyllum spicatum","not stated","14 days","Growth: Specific leaf area","EC50","0.29 ug/L","Cedergreen, N., Streibig, J. C. & Spliid, N. H. 2004. Sensitivity of aquatic plants to the herbicide metsulfuron-methyl, Ecotxocology and Environmental Safety, vol. 57, pp. 153 - 161.","941",null,null,"Author responded - >98% purity","Author responded - >98% purity"]
["Freshwater","941-15",75,0.72815533980582525,"Potamogeton crispus","not stated","14 days","Growth: Specific leaf area","EC50","0.23 ug/L","Cedergreen, N., Streibig, J. C. & Spliid, N. H. 2004. Sensitivity of aquatic plants to the herbicide metsulfuron-methyl, Ecotxocology and Environmental Safety, vol. 57, pp. 153 - 161.","941",null,null,"Author responded - >98% purity","Author responded - >98% purity"]
["Freshwater","941-16",75,0.72815533980582525,"Batrachium trichophyllum","not stated","14 days","Growth: Specific leaf area","EC50","0.07 ug/L","Cedergreen, N., Streibig, J. C. & Spliid, N. H. 2004. Sensitivity of aquatic plants to the herbicide metsulfuron-methyl, Ecotxocology and Environmental Safety, vol. 57, pp. 153 - 161.","941",null,null,"Author responded - >98% purity","Author responded - >98% purity"]
["Freshwater","941-17",75,0.72815533980582525,"Berula erecta","not stated","14 days","Growth: Specific leaf area","EC50","3.92 ug/L","Cedergreen, N., Streibig, J. C. & Spliid, N. H. 2004. Sensitivity of aquatic plants to the herbicide metsulfuron-methyl, Ecotxocology and Environmental Safety, vol. 57, pp. 153 - 161.","941",null,null,"Author responded - >98% purity","Author responded - >98% purity"]
["Freshwater","961-1",61,0.59223300970873782,"Scenedesmus quadricauda","not stated","96 hours","Growth: Cell density","EC50","5.6 mg/L","Ma, J., Lin, F. & Xu, L. 2004. Acute Toxicity Assessment of 20 Herbicides to the Green Alga Scenedesmus quadricauda (Turp.) Breb, Bulletin of Environmental Contamination and Toxicology, vol. 72, pp. 1164 - 1171.","961",null,null," 90% technical product "," 90% technical product "]
["Freshwater","OK added in",63,0.61165048543689315,"Selenastrum capricornutum","not stated","96 hours","Biomass: Fluorescence","EC50",190,"Fairchild, J. F., Ruessler, D. S., Haverland, P. S. & Carlson, A. R. 1997. Comparative Sensitivity of Selenastrum capricornutum and Lemna minor to Sixteen Herbicides, vol. 32, pp. 353 - 357. ","856","Do Not Use - Fluorescence ",null,"Technical grade materials","Technical grade materials"]
["Freshwater","OK added in",63,0.61165048543689315,"Selenastrum capricornutum","not stated","96 hours","Biomass: Fluorescence","NOEC","<19","Fairchild, J. F., Ruessler, D. S., Haverland, P. S. & Carlson, A. R. 1997. Comparative Sensitivity of Selenastrum capricornutum and Lemna minor to Sixteen Herbicides, vol. 32, pp. 353 - 357. ","856","Do Not Use - Fluorescence ",null,"Technical grade materials","Technical grade materials"]
["Freshwater","OK added in",63,0.61165048543689315,"Selenastrum capricornutum","not stated","96 hours","Biomass: Fluorescence","LOEC",19,"Fairchild, J. F., Ruessler, D. S., Haverland, P. S. & Carlson, A. R. 1997. Comparative Sensitivity of Selenastrum capricornutum and Lemna minor to Sixteen Herbicides, vol. 32, pp. 353 - 357. ","856","Do Not Use - Fluorescence ",null,"Technical grade materials","Technical grade materials"]
["Freshwater","OK added in",63,0.61165048543689315,"Lemna minor","not stated","96 hours","Biomass: Frond number","EC50",0.4,"Fairchild, J. F., Ruessler, D. S., Haverland, P. S. & Carlson, A. R. 1997. Comparative Sensitivity of Selenastrum capricornutum and Lemna minor to Sixteen Herbicides, vol. 32, pp. 353 - 357. ","856",null,null,"Technical grade materials","Technical grade materials"]
["Freshwater","OK added in",63,0.61165048543689315,"Lemna minor","not stated","96 hours","Biomass: Frond number","NOEC","<0.2","Fairchild, J. F., Ruessler, D. S., Haverland, P. S. & Carlson, A. R. 1997. Comparative Sensitivity of Selenastrum capricornutum and Lemna minor to Sixteen Herbicides, vol. 32, pp. 353 - 357. ","856","Do Not Use - No NOEC value obtained",null,"Technical grade materials","Technical grade materials"]
["Freshwater","OK added in",63,0.61165048543689315,"Lemna minor","not stated","96 hours","Biomass: Frond number","LOEC",0.2,"Fairchild, J. F., Ruessler, D. S., Haverland, P. S. & Carlson, A. R. 1997. Comparative Sensitivity of Selenastrum capricornutum and Lemna minor to Sixteen Herbicides, vol. 32, pp. 353 - 357. ","856","lowest conc. tested",null,"Technical grade materials","Technical grade materials"]
["Freshwater","1258-1",62,0.60194174757281549,"Lemna minor","not stated","7 days","Growth rate: Frond area","EC50","0.8 uM","Cedergreen N, Anderson L, Olesen C, Spliid H and Streibig J (2005). Does the effect of herbicide pulse exposure on aquatic plants depend on Kow or mode of action?, Aquatic Toxicology, 71(3), 261-271.","1258",null,null,"Technical grade material 98.5","Technical grade material 98.5"]
["Freshwater","1258-2",62,0.60194174757281549,"Lemna minor","not stated","7 days","Growth rate: Frond area","EC50","2.3 uM","Cedergreen N, Anderson L, Olesen C, Spliid H and Streibig J (2005). Does the effect of herbicide pulse exposure on aquatic plants depend on Kow or mode of action?, Aquatic Toxicology, 71(3), 261-271.","1258",null,null,"Technical grade material 98.5","Technical grade material 98.5"]
["Freshwater","1258-3",62,0.60194174757281549,"Lemna minor","not stated","7 days","Growth rate: Frond area","EC50","12.7 uM","Cedergreen N, Anderson L, Olesen C, Spliid H and Streibig J (2005). Does the effect of herbicide pulse exposure on aquatic plants depend on Kow or mode of action?, Aquatic Toxicology, 71(3), 261-271.","1258",null,null,"Technical grade material 98.5","Technical grade material 98.5"]
["Freshwater","1258-4",62,0.60194174757281549,"Lemna minor","not stated","7 days","Growth rate: Frond area","EC50","1.13 uM","Cedergreen N, Anderson L, Olesen C, Spliid H and Streibig J (2005). Does the effect of herbicide pulse exposure on aquatic plants depend on Kow or mode of action?, Aquatic Toxicology, 71(3), 261-271.","1258",null,null,"Technical grade material 98.5","Technical grade material 98.5"]
["Freshwater","1258-5",58,0.56310679611650483,"Lemna minor","not stated","7 days","Growth rate: Frond area","EC10","0.3 uM","Cedergreen N, Anderson L, Olesen C, Spliid H and Streibig J (2005). Does the effect of herbicide pulse exposure on aquatic plants depend on Kow or mode of action?, Aquatic Toxicology, 71(3), 261-271.","1258",null,null,"Technical grade material 98.5","Technical grade material 98.5"]
["Freshwater","1258-6",58,0.56310679611650483,"Lemna minor","not stated","7 days","Growth rate: Frond area","EC10","0.8 uM","Cedergreen N, Anderson L, Olesen C, Spliid H and Streibig J (2005). Does the effect of herbicide pulse exposure on aquatic plants depend on Kow or mode of action?, Aquatic Toxicology, 71(3), 261-271.","1258",null,null,"Technical grade material 98.5","Technical grade material 98.5"]
["Freshwater","1258-7",58,0.56310679611650483,"Lemna minor","not stated","7 days","Growth rate: Frond area","EC10","3.8 uM","Cedergreen N, Anderson L, Olesen C, Spliid H and Streibig J (2005). Does the effect of herbicide pulse exposure on aquatic plants depend on Kow or mode of action?, Aquatic Toxicology, 71(3), 261-271.","1258",null,null,"Technical grade material 98.5","Technical grade material 98.5"]
["Freshwater","1258-8",58,0.56310679611650483,"Lemna minor","not stated","7 days","Growth rate: Frond area","EC10","0.5 uM","Cedergreen N, Anderson L, Olesen C, Spliid H and Streibig J (2005). Does the effect of herbicide pulse exposure on aquatic plants depend on Kow or mode of action?, Aquatic Toxicology, 71(3), 261-271.","1258",null,null,"Technical grade material 98.5","Technical grade material 98.5"]
["Freshwater","1259-1",66,0.64077669902912626,"Lemna minor","not stated","6 days","Growth rate: Dry weight","EC50","11.95 ug/L","Cedergreen N and Streibig J (2005). Can the choice of endpoint lead to contradictory results of mixture-toxicity experiments?, Environmental Toxicology and Chemistry, 24(7), 1676-1683.","1259"]
["Freshwater","1259-2",66,0.64077669902912626,"Lemna minor","not stated","9 days","Growth rate: Dry weight","EC50","6.18 ug/L","Cedergreen N and Streibig J (2005). Can the choice of endpoint lead to contradictory results of mixture-toxicity experiments?, Environmental Toxicology and Chemistry, 24(7), 1676-1683.","1259"]
["Freshwater","1259-3",66,0.64077669902912626,"Lemna minor","not stated","12 days","Growth rate: Dry weight","EC50","2.61 ug/L","Cedergreen N and Streibig J (2005). Can the choice of endpoint lead to contradictory results of mixture-toxicity experiments?, Environmental Toxicology and Chemistry, 24(7), 1676-1683.","1259"]
["Freshwater","1259-4",66,0.64077669902912626,"Lemna minor","not stated","15 days","Growth rate: Dry weight","EC50","2.43 ug/L","Cedergreen N and Streibig J (2005). Can the choice of endpoint lead to contradictory results of mixture-toxicity experiments?, Environmental Toxicology and Chemistry, 24(7), 1676-1683.","1259"]
[]
[null,null,null,null,null,204338]
[null,"USEPA Pesticides Database"]
["RecordID","CHEMICAL","PC_CODE","CAS_NO","USEPATTERN","EPAIDENT","DOC_NUMBER","TAXA","COMMONNAME","TAXONOMIC","AGE","GUIDELINE","TYPE","AI","STUDYTIME","DOSETYPE","TGL","TOXICITY","TOXLEVEL","CL","PROBIT_SLOPE","NGL","NOEL","STUDYDATE","REVIEWDATE"]
[2384,"Metsulfuron methyl","122010","74223-64-6","Herbicide","00125817","2016057","Fishes","Bluegill sunfish","Lepomis macrochirus","N.R.","72-1","S","92.9","96 hr","LC50",">","150","PPM","N.R.","N.R.","","N.R.","1982","1983","Do Not Use - LC50 not obtained "]
[2380,"Metsulfuron methyl","122010","74223-64-6","Herbicide","40639302","2016065","Aquatic Plant","Green algae","Selenastrum capricornutum","N.R.","123-2","S","99","5 D","EC50","","285.6","PPB","78.1-11165","0.47","","10","1987","1988"]
[2380,"Metsulfuron methyl","122010","74223-64-6","Herbicide","40639302","2016065","Aquatic Plant","Green algae","Selenastrum capricornutum","N.R.","123-2","S","99","5 D","NOEL","","10","PPB","78.1-11165","0.47","",null,"1987","1988"]
[2381,"Metsulfuron methyl","122010","74223-64-6","Herbicide","41773902","2016066","Aquatic Plant","Duckweed","Lemna minor","N.R.","123-2","S","99.2","14 D","EC50","","0.36","PPB","0.29-0.43","N.R.","","0.16","1988","1992"]
[2381,"Metsulfuron methyl","122010","74223-64-6","Herbicide","41773902","2016066","Aquatic Plant","Duckweed","Lemna minor","N.R.","123-2","S","99.2","14 D","NOEL","","0.16","PPB","0.29-0.43","N.R.","",null,"1988","1992"]
[2382,"Metsulfuron methyl","122010","74223-64-6","Herbicide","00125818","2016058","Crustacea","Water flea","Daphnia magna","<24 hr","72-2","S","92.9","48 hr","EC50",">","150","PPM","N.R.","N.R.","","N.R.","1982","1983","Do Not Use - EC50 not obtained "]
[2385,"Metsulfuron methyl","122010","74223-64-6","Herbicide","00125816","2016056","Fishes","Rainbow trout","Oncorhynchus mykiss","N.R.","72-1","S","92.9","96 hr","LC50",">","150","PPM","N.R.","N.R.","","N.R.","1982","1983","Do Not Use - LC50 not obtained "]
[15837,"Metsulfuron methyl","122010","74223-64-6","Herbicide","45109109","2016075","Aquatic Plant","Freshwater diatom","Navicula pelliculosa","N.R.","123-2","S","92.2","96 hr","EC50",">","92800","PPB","N.R.","N.R.","","92800","1998","2001","Do Not Use - EC50 not obtained "]
[15837,"Metsulfuron methyl","122010","74223-64-6","Herbicide","45109109","2016075","Aquatic Plant","Freshwater diatom","Navicula pelliculosa","N.R.","123-2","S","92.2","96 hr","NOEL",null,"92800","PPB","N.R.","N.R.","",null,"1998","2001"]
[15838,"Metsulfuron methyl","122010","74223-64-6","Herbicide","45109112","2016073","Aquatic Plant","Duckweed","Lemna gibba","N.R.","123-2","SR","92.2","7 D","EC50","","0.41","PPB","0.33-0.51","N.R.","","0.19","1998","2001"]
[13984,"Metsulfuron methyl","122010","74223-64-6","Herbicide","44244001","2016076","Aquatic Plant","Bluegreen algae","Anabaena flos-aquae","N.R.","122-2","S","99.1","5 D","EC50",">","95.4","PPB","N.A.","N.A.","","95.4","1996","1997","Do Not Use - EC50 not obtained "]
[13984,"Metsulfuron methyl","122010","74223-64-6","Herbicide","44244001","2016076","Aquatic Plant","Bluegreen algae","Anabaena flos-aquae","N.R.","122-2","S","99.1","5 D","NOEL",null,"95.4","PPB","N.A.","N.A.","",null,"1996","1997"]
[13985,"Metsulfuron methyl","122010","74223-64-6","Herbicide","44244002","2016077","Aquatic Plant","Marine diatom","Skeletonema costatum","N.R.","122-2","S",99.1,"5 D","EC50",">","93.6","PPB","N.A.","N.A.","","93.6","1996","1997","Do Not Use - MARINE SPECIES"]
[13985,"Metsulfuron methyl","122010","74223-64-6","Herbicide","44244002","2016077","Aquatic Plant","Marine diatom","Skeletonema costatum","N.R.","122-2","S",99.1,"5 D","NOEL",null,"93.6","PPB","N.A.","N.A.","",null,"1996","1997","Do Not Use - MARINE SPECIES"]
[15836,"Metsulfuron methyl","122010","74223-64-6","Herbicide","45109108","2016074","Aquatic Plant","Freshwater Green algae","Pseudokirchneriella subcapitata","N.R.","123-2","S","92.2","96 hr","EC50","","130","PPB","88-210","1.79","","14.5","1998","2001"]
[15836,"Metsulfuron methyl","122010","74223-64-6","Herbicide","45109108","2016074","Aquatic Plant","Freshwater Green algae","Pseudokirchneriella subcapitata","N.R.","123-2","S","92.2","96 hr","NOEL","","14.5","PPB","88-210","1.79","",null,"1998","2001"]
[15093,"Metsulfuron methyl","122010","74223-64-6","Herbicide","44122801","2016072","Fishes","Rainbow trout","Oncorhynchus mykiss","ErlyLf","72-4","F","99.13","90 D","LOEC","","8.0","PPM","N.A.","N.A.","","4.5","1996","2000"]
[15093,"Metsulfuron methyl","122010","74223-64-6","Herbicide","44122801","2016072","Fishes","Rainbow trout","Oncorhynchus mykiss","ErlyLf","72-4","F","99.13","90 D","NOEL","","4.5","PPM","N.A.","N.A.","","","1996","2000"]

{"sheet":"Fresh Data QA","index":4,"n_rows":98,"n_cols":25,"rows_kept":98,"cut":false,"hidden":false,"merged":[[3,4,7,4],[56,7,59,7],[60,7,63,7],[40,7,42,7],[43,7,45,7],[46,7,48,7],[49,7,51,7],[34,7,36,7],[52,7,54,7],[14,7,16,7],[9,2,9,4],[20,2,21,2],[22,2,24,2],[17,7,19,7],[20,7,21,7],[80,7,82,7],[64,7,67,7],[68,7,71,7],[72,7,75,7],[76,7,79,7],[72,2,75,2],[76,2,79,2],[11,7,13,7],[37,7,39,7],[28,7,30,7],[31,7,33,7],[25,7,27,7],[11,2,13,2],[14,2,16,2],[17,2,19,2],[25,2,27,2],[22,7,24,7],[83,7,86,7],[34,2,36,2],[37,2,39,2],[28,2,30,2],[60,2,63,2],[40,2,42,2],[43,2,45,2],[83,2,86,2],[46,2,48,2],[31,2,33,2],[80,2,82,2],[49,2,51,2],[52,2,54,2],[56,2,59,2],[64,2,67,2],[68,2,71,2]]}
[null,1,"FILL IN BLANKS BELOW,PICK OPTIONS FROM DROPDOWN LIST",null,null,null,null,null,null,null,"* All the text in Blue are used for drop down list ,make changes with caution."]
[null,null,"Category",null,"Freshwater",{"$f":"IF(M3=\"\",0,1)","v":1},"Citation No.",{"$f":"IF(E3=\"\",\"\",LEFT(E3,FIND(\"-\",E3) -1))","v":"1259"},null,null,"Species",null,null,"Lifestage",null,null,"Exposure duration",null,null,"Measure of toxicity",null,null,"Toxicity endpoint"]
[null,null,"Paper and data unique identifier(eg. 1-1,10-150)",null,"1259-4",{"$f":"IF(E3=\"\",0,1)","v":1},"Species (Scientific name)",null,null,null,"Australian Bass",15,{"$f":"IF(L3=0,\"\",INDEX(K3:K50,L3))","v":"Lemna minor"},"1 Frond",10,{"$f":"IF(O3=0,\"\",INDEX(N3:N50,O3))","v":"not stated"},"1 hour ",25,{"$f":"IF(R3=0,\"\",INDEX(Q3:Q50,R3))","v":"15 days"},"Development: Root Growth",3,{"$f":"IF(U3=0,\"\",INDEX(T3:T50,U3))","v":"Growth rate: Dry weight"},0.01,14,{"$f":"IF(X3=0,\"\",INDEX(W3:W50,X3))","v":"EC50"}]
[null,null,"Citation",null,"Cedergreen N and Streibig J (2005). Can the choice of endpoint lead to contradictory results of mixture-toxicity experiments?, Environmental Toxicology and Chemistry, 24(7), 1676-1683.",{"$f":"IF(E4=\"\",0,1)","v":1},"Lifestage",null,null,null,"Bala Shark",null,null,"24 hr-old culture",null,null,"14 days",null,null,"Development: Root Occurence",null,null,0.02]
[null,null,null,null,null,{"$f":"IF(S3=\"\",0,1)","v":1},"Exposure duration",null,null,null,"Basa",null,null,"Apical shoot (19.5 cm)",null,null,"2 days",null,null,"Growth rate: Dry weight",null,null,0.03]
[null,null,null,null,null,{"$f":"IF(V3=\"\",0,1)","v":1},"Measure of toxicity",null,null,null,"Batrachium trichophyllum",null,null,"Apical shoot (3.60g - 3.65g)",null,null,"2 hours",null,null,"Growth rate: Frond area",null,null,0.04]
[null,null,null,null,null,{"$f":"IF(Y3=\"\",0,1)","v":1},"Toxicity endpoint",null,null,null,"Berula erecta",null,null,"Apical shoot (WW 2.30g - 2.35g)",null,null,"24 hours",null,null,"Growth rate: Frond count",null,null,0.05]
[null,null,null,null,null,{"$f":"IF(H8=\"\",0,1)","v":1},"Toxicity value","2.43 ug/L",null,null,"Black Parinha",null,null,"Axillary buds (3cm long)",null,null,"3 hours",null,null,"Growth rate: Theoretical frond area",null,null,0.06]
[null,2,"CHOOSE ANSWER OPTIONS AND FILL IN ANSWERS IN ANSWER COLUMN",null,null,{"$f":"IF(M3=\"\",0,1)","v":1},null,null,null,null,"Catfish",null,null,"Exponential growth culture",null,null,"4 days",null,null,"Growth: Cell density",null,null,7.0000000000000007E-2]
[null,"*","If had problem click on answer options,click on any  other cells first and then click back again.",null,null,{"$f":"IF(P3=\"\",0,1)","v":1},null,null,null,null,"Ceratophyllum demersum",null,null,"Exponential growth phase",null,null,"4 hours",null,null,"Growth: Frond number",null,null,0.08]
[null,"No.","Question","Marks Awarded","Answer Options","Option References","Scores","Answers",null,null,"Ceratophyllum submersum",null,null,"Exponential growth phase (colony with three fronds",null,null,"42 days",null,null,"Growth: Inhibition",null,null,0.09]
[null,null,"Was the duration of the exposure stated (e.g., 48 or 96 h)?",10,null,1,{"$f":"IF(F15=0,0,INDEX($D12:$D13,F12,1))","v":10},"6, 9, 12 and 15 days",null,null,"Chloella pyrenoidosa",null,null,"not stated",null,null,"48 hours",null,null,"Growth: Shoot length",null,null,0.1]
[null,1,null,0,null,null,null,null,null,null,"Eel",null,null,"not-stated",null,null,"48 hours",null,null,"Growth: Specific leaf area",null,null,"EC05"]
[null,null,null,null,null,null,null,null,null,null,"Elodea canadensis",null,null,"not-stated",null,null,"5 hours",null,null,"Method 1",null,null,"EC10"]
[null,null,"Was the biological endpoint (e.g., immobilization or population growth) stated and defined (10 marks)? Award 5 marks if the biological endpoint is only stated.",10,null,1,{"$f":"IF(F15=0,0,INDEX($D15:$D17,F15,1))","v":10},"Relative growth rate: Dry weight",null,null,"Elodea canadensis",null,null,"not-stated",null,null,"6 days",null,null,"Method 10",null,null,"EC20"]
[null,2,null,5,null,null,null,null,null,null,"Lemna gibba",null,null,"Phase 1",null,null,"6 hours",null,null,"Method 2",null,null,"EC50"]
[null,null,null,0,null,null,null,null,null,null,"Lemna minor",null,null,"Phase 2",null,null,"7 days",null,null,"Method 3",null,null,"IC50"]
[null,null,"Was the biological effect stated (e.g., LC or NOEC)?",5,null,1,{"$f":"IF(F18=0,0,INDEX($D18:$D19,F18,1))","v":5},"EC50",null,null,"Lemna trisulca",null,null,"Phase 3",null,null,"7 hours",null,null,"Method 4",null,null,"IC57"]
[null,3,null,0,null,null,null,null,null,null,"Lungfish",null,null,"Phase 4",null,null,"72 hours",null,null,"Method 5",null,null,"LC50"]
[null,null,null,null,null,null,null,null,null,null,"Murray Cod",null,null,"Phase 5",null,null,"8 days",null,null,"Method 6",null,null,"LOEC"]
[null,4,"Was the biological effect quantified (e.g., 50% effect, 25% effect)? The effect for NOEC and LOEC data must be quantified.",5,null,1,{"$f":"IF(F21=0,0,INDEX($D21:$D22,F21,1))","v":5},"EC50",null,null,"Myriophyllum aquaticum",null,null,"Phase 6",null,null,"8 hours",null,null,"Method 7",null,null,"NOEC"]
[null,null,null,0,null,null,null,null,null,null,"Myriophyllum spicatum",null,null,"Phase 7 ",null,null,"9 hours",null,null,"Method 8"]
[null,5,"Were appropriate controls (e.g., a no-toxicant control and/or solvent control) used?",5,null,1,{"$f":"IF(F23=0,0,INDEX($D23:$D24,F23,1))","v":5},"Six replicates of each herbicide concentration and control were set up.",null,null,"Nemo",null,null,"Phase 8",null,null,"96 hours",null,null,"Method 9"]
[null,null,null,0,null,null,null,null,null,null,"Potamogeton crispus",null,null,"Phase 9",null,null,"Healthy colony: 3 fronds (exponential growth phase)",null,null,"Mortality: Survival"]
[null,null,null,null,null,null,null,null,null,null,"Pseudokircheriella subcapitata",null,null,"Tadpoles",null,null,"9 days",null,null,"Population abundance: Cell count"]
[null,6,"Was each control and contaminant concentration at least duplicated?",5,null,1,{"$f":"IF(F26=0,0,INDEX($D26:$D27,F26,1))","v":5},"Six replicates of each herbicide concentration and control were set up.",null,null,"Redclaw",null,null,"Young algal cells - beginning of growth cycle",null,null,"12 days",null,null,"Population Abundance: Frond Number"]
[null,null,null,0,null,null,null,null,null,null,"Rhinella arenarum",null,null,null,null,null,"15 days",null,null,"Population: Abundance (chlorophyll-b)"]
[null,null,null,null,null,null,null,null,null,null,"Scenedesmus obliquus",null,null,null,null,null,null,null,null,"Population: Biomass Dry Weight"]
[null,7,"Were test acceptability criteria stated (e.g., mortality in controls must not exceed a certain percentage) (5 marks)?\nOR\nWere test acceptability criteria inferred (e.g., test method used [USEPA, OECD, ASTM etc]) (award 2 marks). Note: Invalid data must no",5,null,3,{"$f":"IF(F29=0,0,INDEX($D29:$D31,F29,1))","v":0},null,null,null,"Scenedesmus quadricauda",null,null,null,null,null,null,null,null,"Population: Growth (chlorophyll-a)"]
[null,null,null,2,null,null,null,null,null,null,"Scenedesmus vacuolatus",null,null,null,null,null,null,null,null,"Population: Growth (flourescence as a measure of chlorophylla-)"]
[null,null,null,0,null,null,null,null,null,null,"Sea Mullet",null,null,null,null,null,null,null,null,"Population: Growth Inhibition"]
[null,8,"Were the characteristics of the test organism (e.g., length, mass, age) stated?",5,null,2,{"$f":"IF(F32=0,0,INDEX($D32:$D34,F32,1))","v":0},"Not stated",null,null,"Selenastrum capricornutum",null,null,null,null,null,null,null,null,"Population: Growth of Shoots"]
[null,null,null,0,null,null,null,null,null,null,"Selenastrum capricornutum",null,null,null,null,null,null,null,null,"Population: Growth Rate (Frond number)"]
[null,null,null,null,null,null,null,null,null,null,"SilverPerch",null,null,null,null,null,null,null,null,"Population: Relative Growth Rate"]
[null,9,"Was the type of test media used stated?",5,null,1,{"$f":"IF(F35=0,0,INDEX($D35:$D37,F35,1))","v":5},"K medium at pH 5, 24 degrees C.",null,null,"Spirodela polyrrhiza",null,null,null,null,null,null,null,null,"Population: Relative growth rate (Chloropyll)"]
[null,null,null,0,null,null,null,null,null,null,null,null,null,null,null,null,null,null,null,"Population: Relative growth rate (leaf S.A.)"]
[null,null,null,null,null,null,null,null,null,null,null,null,null,null,null,null,null,null,null,"Population: Shoot Growth"]
[null,null,"Was the type of exposure (e.g. static, flow through) stated? ",4,null,2,{"$f":"IF(F38=0,0,INDEX($D38:$D40,F38,1))","v":0},"Not stated",null,null,null,null,null,null,null,null,null,null,null,"Population: Shoot growth (dry weight)"]
[null,10,null,0,null,null,null,null,null,null,null,null,null,null,null,null,null,null,null,"Population: Shoot length"]
[null,null,null,null,null,null,null,null,null,null,null,null,null,null,null,null,null,null,null,"Population: Shoot length"]
[null,null,"Were the contaminant concentrations measured?",4,null,2,{"$f":"IF(F41=0,0,INDEX($D41:$D43,F41,1))","v":0},"All concentrations are given in nominal concentrations. 0.053, 0.15, 0.43, 1.2, 3.5, 10 ug/L of metsulfuron-methyl\n",null,null,null,null,null,null,null,null,null,null,null,"Population: Total Root Length"]
[null,11,null,0,null,null,null,null,null,null,null,null,null,null,null,null,null,null,null,"Reproduction Inhibition: Cell Number"]
[]
[null,null,"Were parallel reference toxicant toxicity tests conducted?",4,null,2,{"$f":"IF(F44=0,0,INDEX($D44:$D46,F44,1))","v":0}]
[null,12,null,0]
[]
[null,null,"Was there a concentration–response relationship either observable or stated",4,null,1,{"$f":"IF(F47=0,0,INDEX($D47:$D49,F47,1))","v":4},"Observable and stated"]
[null,13,null,0]
[]
[null,null,"Was an appropriate statistical method or model used to determine the toxicity?",4,null,1,{"$f":"IF(F50=0,0,INDEX($D50:$D52,F50,1))","v":4},"Logisitic curve"]
[null,14,null,0]
[]
[null,15,"For LC/EC/BEC data was an estimate of variability provided? Or For NO EC/LOEC data was the significance level 0.05 or less?  \n\n",4,null,1,{"$f":"IF(F53=0,0,INDEX($D53:$D55,F53,1))","v":4},"Standard error"]
[null,null,null,0]
[]
[null,16,"Were the following parameters measured and stated? (3 marks if measured and stated, 1 if just measured)"]
[null,null,"pH",3,null,1,{"$f":"IF(F57=0,0,INDEX($D57:$D59,F57,1))","v":3},"pH 5"]
[null,16.100000000000001,null,1]
[null,null,null,0]
[]
[null,null,"Hardness",3,null,3,{"$f":"IF(F61=0,0,INDEX($D61:$D63,F61,1))","v":0}]
[null,16.2,null,1]
[null,null,null,0]
[]
[null,null,"Alkalinity",3,null,3,{"$f":"IF(F65=0,0,INDEX($D65:$D67,F65,1))","v":0}]
[null,16.3,null,1]
[null,null,null,0]
[]
[null,null,"Organic carbon concentration",3,null,3,{"$f":"IF(F69=0,0,INDEX($D69:$D71,F69,1))","v":0}]
[null,16.399999999999999,null,1]
[null,null,null,0]
[]
[null,null,"Conductivity ",3,null,3,{"$f":"IF(F73=0,0,INDEX($D73:$D75,F73,1))","v":0}]
[null,16.5,null,1]
[null,null,null,0]
[]
[null,null,"Dissolved Oxygen",3,null,3,{"$f":"IF(F77=0,0,INDEX($D77:$D79,F77,1))","v":0}]
[null,16.600000000000001,null,1]
[null,null,null,0]
[]
[null,null,"Was the temperature measured and stated?",3,null,1,{"$f":"IF(F81=0,0,INDEX($D81:$D83,F81,1))","v":3},"Growth cabinet at 24 degrees C"]
[null,17,null,0]
[]
[null,null,"Was the grade or purity of the test contaminant stated?",3,null,1,{"$f":"IF(F84=0,0,INDEX($D84:$D85,F84,1))","v":3},"Technical grade, 98.5%"]
[null,18,null,0]
[]
[null,null,null,null,null,null,null,null,{"$f":"(COUNTIF(F12:F87,\"=0\"))+COUNTIF(F2:F10,\"=0\")","v":0}]
[]
[]
[null,null,"Total score",null,null,null,{"$f":"IF(SUM(G12:G84)=0,\"\",SUM(G12:G84))","v":66}]
[null,null,"Total Max. possible score for the various types of data and contaminants ",null,{"$f":"D12+D15+D18+D21+D23+D26+D29+D32+D35+D38+D41+D44+D47+D50+D53+D57+D61+D65+D69+D73+D77+D81+D84","v":103}]
[null,null,"Quality Score",null,{"$f":"\"= [Total score / Total possible score] * 100 = \"","v":"= [Total score / Total possible score] * 100 = "},null,{"$f":"IF(ISERROR(G90/E91),#N/A,G90/E91)","v":0.64077669902912626}]
[]
[null,null,"H = high quality                           Quality score >=80%      "]
[null,null,"A = acceptable quality         80%>Quality score>50%      "]
[null,null,"U = unacceptable quality              Quality score <=50%  "]
[]
[3,null,"CLICK \"Save&Update\" BUTTON TO SAVE ANSWER TO SAMPLE FINALISED ASSESSMENT SHEET"]

{"sheet":"Sheet1","index":5,"n_rows":34,"n_cols":29,"rows_kept":34,"cut":false,"hidden":true,"merged":[]}
[]
[{"$f":"'Fresh Data QA'!B11","v":"No."},{"$f":"'Fresh Data QA'!B13","v":1},{"$f":"'Fresh Data QA'!B16","v":2},{"$f":"'Fresh Data QA'!B19","v":3},{"$f":"'Fresh Data QA'!B21","v":4},{"$f":"'Fresh Data QA'!B23","v":5},{"$f":"'Fresh Data QA'!B26","v":6},{"$f":"'Fresh Data QA'!B29","v":7},{"$f":"'Fresh Data QA'!B32","v":8},{"$f":"'Fresh Data QA'!B35","v":9},{"$f":"'Fresh Data QA'!B39","v":10},{"$f":"'Fresh Data QA'!B42","v":11},{"$f":"'Fresh Data QA'!B45","v":12},{"$f":"'Fresh Data QA'!B48","v":13},{"$f":"'Fresh Data QA'!B51","v":14},{"$f":"'Fresh Data QA'!B53","v":15},{"$f":"'Fresh Data QA'!B58","v":16.100000000000001},{"$f":"'Fresh Data QA'!B62","v":16.2},{"$f":"'Fresh Data QA'!B66","v":16.3},{"$f":"'Fresh Data QA'!B70","v":16.399999999999999},{"$f":"'Fresh Data QA'!B74","v":16.5},{"$f":"'Fresh Data QA'!B78","v":16.600000000000001},{"$f":"'Fresh Data QA'!B82","v":17},{"$f":"'Fresh Data QA'!B85","v":18},{"$f":"'Fresh Data QA'!C90","v":"Total score"},{"$f":"'Fresh Data QA'!C92","v":"Quality Score"}]
[{"$f":"'Fresh Data QA'!C2","v":"Category"},{"$f":"'Fresh Data QA'!E2","v":"Freshwater"},{"$f":"'Fresh Data QA'!C3","v":"Paper and data unique identifier(eg. 1-1,10-150)"},{"$f":"'Fresh Data QA'!E3","v":"1259-4"}]
[{"$f":"'Fresh Data QA'!G11","v":"Scores"},{"$f":"'Fresh Data QA'!G12","v":10},{"$f":"'Fresh Data QA'!G15","v":10},{"$f":"'Fresh Data QA'!G18","v":5},{"$f":"'Fresh Data QA'!G21","v":5},{"$f":"'Fresh Data QA'!G23","v":5},{"$f":"'Fresh Data QA'!G26","v":5},{"$f":"'Fresh Data QA'!G29","v":0},{"$f":"'Fresh Data QA'!G32","v":0},{"$f":"'Fresh Data QA'!G35","v":5},{"$f":"'Fresh Data QA'!G38","v":0},{"$f":"'Fresh Data QA'!G41","v":0},{"$f":"'Fresh Data QA'!G44","v":0},{"$f":"'Fresh Data QA'!G47","v":4},{"$f":"'Fresh Data QA'!G50","v":4},{"$f":"'Fresh Data QA'!G53","v":4},{"$f":"'Fresh Data QA'!G57","v":3},{"$f":"'Fresh Data QA'!G61","v":0},{"$f":"'Fresh Data QA'!G65","v":0},{"$f":"'Fresh Data QA'!G69","v":0},{"$f":"'Fresh Data QA'!G73","v":0},{"$f":"'Fresh Data QA'!G77","v":0},{"$f":"'Fresh Data QA'!G81","v":3},{"$f":"'Fresh Data QA'!G84","v":3},{"$f":"'Fresh Data QA'!G90","v":66},{"$f":"'Fresh Data QA'!G92","v":0.64077669902912626}]
["Answers",{"$f":"IF('Fresh Data QA'!H12=0,\"\",'Fresh Data QA'!H12)","v":"6, 9, 12 and 15 days"},{"$f":"IF('Fresh Data QA'!H15=0,\"\",'Fresh Data QA'!H15)","v":"Relative growth rate: Dry weight"},{"$f":"IF('Fresh Data QA'!H18=0,\"\",'Fresh Data QA'!H18)","v":"EC50"},{"$f":"IF('Fresh Data QA'!H21=0,\"\",'Fresh Data QA'!H21)","v":"EC50"},{"$f":"IF('Fresh Data QA'!H23=0,\"\",'Fresh Data QA'!H23)","v":"Six replicates of each herbicide concentration and control were set up."},{"$f":"IF('Fresh Data QA'!H26=0,\"\",'Fresh Data QA'!H26)","v":"Six replicates of each herbicide concentration and control were set up."},{"$f":"IF('Fresh Data QA'!H29=0,\"\",'Fresh Data QA'!H29)","v":""},{"$f":"IF('Fresh Data QA'!H32=0,\"\",'Fresh Data QA'!H32)","v":"Not stated"},{"$f":"IF('Fresh Data QA'!H35=0,\"\",'Fresh Data QA'!H35)","v":"K medium at pH 5, 24 degrees C."},{"$f":"IF('Fresh Data QA'!H38=0,\"\",'Fresh Data QA'!H38)","v":"Not stated"},{"$f":"IF('Fresh Data QA'!H41=0,\"\",'Fresh Data QA'!H41)","v":"All concentrations are given in nominal concentrations. 0.053, 0.15, 0.43, 1.2, 3.5, 10 ug/L of metsulfuron-methyl\n"},{"$f":"IF('Fresh Data QA'!H44=0,\"\",'Fresh Data QA'!H44)","v":""},{"$f":"IF('Fresh Data QA'!H47=0,\"\",'Fresh Data QA'!H47)","v":"Observable and stated"},{"$f":"IF('Fresh Data QA'!H50=0,\"\",'Fresh Data QA'!H50)","v":"Logisitic curve"},{"$f":"IF('Fresh Data QA'!H53=0,\"\",'Fresh Data QA'!H53)","v":"Standard error"},{"$f":"IF('Fresh Data QA'!H57=0,\"\",'Fresh Data QA'!H57)","v":"pH 5"},{"$f":"IF('Fresh Data QA'!H61=0,\"\",'Fresh Data QA'!H65)","v":""},{"$f":"IF('Fresh Data QA'!H65=0,\"\",'Fresh Data QA'!H65)","v":""},{"$f":"IF('Fresh Data QA'!H69=0,\"\",'Fresh Data QA'!H69)","v":""},{"$f":"IF('Fresh Data QA'!H73=0,\"\",'Fresh Data QA'!H73)","v":""},{"$f":"IF('Fresh Data QA'!H77=0,\"\",'Fresh Data QA'!H77)","v":""},{"$f":"IF('Fresh Data QA'!H81=0,\"\",'Fresh Data QA'!H81)","v":"Growth cabinet at 24 degrees C"},{"$f":"IF('Fresh Data QA'!H84=0,\"\",'Fresh Data QA'!H84)","v":"Technical grade, 98.5%"}]
[{"$f":"'Fresh Data QA'!G3","v":"Species (Scientific name)"},{"$f":"'Fresh Data QA'!G4","v":"Lifestage"},{"$f":"'Fresh Data QA'!G5","v":"Exposure duration"},{"$f":"'Fresh Data QA'!G6","v":"Measure of toxicity"},{"$f":"'Fresh Data QA'!G7","v":"Toxicity endpoint"},{"$f":"'Fresh Data QA'!G8","v":"Toxicity value"},{"$f":"'Fresh Data QA'!C4","v":"Citation"},{"$f":"'Fresh Data QA'!G2","v":"Citation No."}]
[{"$f":"'Fresh Data QA'!M3","v":"Lemna minor"},{"$f":"'Fresh Data QA'!P3","v":"not stated"},{"$f":"'Fresh Data QA'!S3","v":"15 days"},{"$f":"'Fresh Data QA'!V3","v":"Growth rate: Dry weight"},{"$f":"'Fresh Data QA'!Y3","v":"EC50"},{"$f":"IF('Fresh Data QA'!H8=0,\"\",'Fresh Data QA'!H8)","v":"2.43 ug/L"},{"$f":"IF('Fresh Data QA'!E4=0,\"\",'Fresh Data QA'!E4)","v":"Cedergreen N and Streibig J (2005). Can the choice of endpoint lead to contradictory results of mixture-toxicity experiments?, Environmental Toxicology and Chemistry, 24(7), 1676-1683."},{"$f":"IF('Fresh Data QA'!H2=0,\"\",'Fresh Data QA'!H2)","v":"1259"}]
[]
[]
[]
[{"$f":"#REF!","v":{"$error":"#REF!"}},{"$f":"#REF!","v":{"$error":"#REF!"}},{"$f":"#REF!","v":{"$error":"#REF!"}},{"$f":"#REF!","v":{"$error":"#REF!"}},{"$f":"#REF!","v":{"$error":"#REF!"}},{"$f":"#REF!","v":{"$error":"#REF!"}},{"$f":"#REF!","v":{"$error":"#REF!"}},{"$f":"#REF!","v":{"$error":"#REF!"}},{"$f":"#REF!","v":{"$error":"#REF!"}},{"$f":"#REF!","v":{"$error":"#REF!"}},{"$f":"#REF!","v":{"$error":"#REF!"}},{"$f":"#REF!","v":{"$error":"#REF!"}},{"$f":"#REF!","v":{"$error":"#REF!"}},{"$f":"#REF!","v":{"$error":"#REF!"}},{"$f":"#REF!","v":{"$error":"#REF!"}},{"$f":"#REF!","v":{"$error":"#REF!"}},{"$f":"#REF!","v":{"$error":"#REF!"}},{"$f":"#REF!","v":{"$error":"#REF!"}},{"$f":"#REF!","v":{"$error":"#REF!"}},{"$f":"#REF!","v":{"$error":"#REF!"}},{"$f":"#REF!","v":{"$error":"#REF!"}},{"$f":"#REF!","v":{"$error":"#REF!"}},{"$f":"#REF!","v":{"$error":"#REF!"}},{"$f":"#REF!","v":{"$error":"#REF!"}},{"$f":"#REF!","v":{"$error":"#REF!"}},{"$f":"#REF!","v":{"$error":"#REF!"}},{"$f":"#REF!","v":{"$error":"#REF!"}}]
[{"$f":"#REF!","v":{"$error":"#REF!"}},{"$f":"#REF!","v":{"$error":"#REF!"}},{"$f":"#REF!","v":{"$error":"#REF!"}},{"$f":"#REF!","v":{"$error":"#REF!"}}]
[{"$f":"#REF!","v":{"$error":"#REF!"}},{"$f":"#REF!","v":{"$error":"#REF!"}},{"$f":"#REF!","v":{"$error":"#REF!"}},{"$f":"#REF!","v":{"$error":"#REF!"}},{"$f":"#REF!","v":{"$error":"#REF!"}},{"$f":"#REF!","v":{"$error":"#REF!"}},{"$f":"#REF!","v":{"$error":"#REF!"}},{"$f":"#REF!","v":{"$error":"#REF!"}},{"$f":"#REF!","v":{"$error":"#REF!"}},{"$f":"#REF!","v":{"$error":"#REF!"}},{"$f":"#REF!","v":{"$error":"#REF!"}},{"$f":"#REF!","v":{"$error":"#REF!"}},{"$f":"#REF!","v":{"$error":"#REF!"}},{"$f":"#REF!","v":{"$error":"#REF!"}},{"$f":"#REF!","v":{"$error":"#REF!"}},{"$f":"#REF!","v":{"$error":"#REF!"}},{"$f":"#REF!","v":{"$error":"#REF!"}},{"$f":"#REF!","v":{"$error":"#REF!"}},{"$f":"#REF!","v":{"$error":"#REF!"}},{"$f":"#REF!","v":{"$error":"#REF!"}},{"$f":"#REF!","v":{"$error":"#REF!"}},{"$f":"#REF!","v":{"$error":"#REF!"}},{"$f":"#REF!","v":{"$error":"#REF!"}},{"$f":"#REF!","v":{"$error":"#REF!"}},{"$f":"#REF!","v":{"$error":"#REF!"}},{"$f":"#REF!","v":{"$error":"#REF!"}},{"$f":"#REF!","v":{"$error":"#REF!"}}]
[{"$f":"#REF!","v":{"$error":"#REF!"}},{"$f":"IF(#REF!=0,\"\",#REF!)","v":{"$error":"#REF!"}},{"$f":"IF(#REF!=0,\"\",#REF!)","v":{"$error":"#REF!"}},{"$f":"IF(#REF!=0,\"\",#REF!)","v":{"$error":"#REF!"}},{"$f":"IF(#REF!=0,\"\",#REF!)","v":{"$error":"#REF!"}},null,{"$f":"IF(#REF!=0,\"\",#REF!)","v":{"$error":"#REF!"}},{"$f":"IF(#REF!=0,\"\",#REF!)","v":{"$error":"#REF!"}},{"$f":"IF(#REF!=0,\"\",#REF!)","v":{"$error":"#REF!"}},{"$f":"IF(#REF!=0,\"\",#REF!)","v":{"$error":"#REF!"}},{"$f":"IF(#REF!=0,\"\",#REF!)","v":{"$error":"#REF!"}},{"$f":"IF(#REF!=0,\"\",#REF!)","v":{"$error":"#REF!"}},{"$f":"IF(#REF!=0,\"\",#REF!)","v":{"$error":"#REF!"}},{"$f":"IF(#REF!=0,\"\",#REF!)","v":{"$error":"#REF!"}},{"$f":"IF(#REF!=0,\"\",#REF!)","v":{"$error":"#REF!"}},{"$f":"IF(#REF!=0,\"\",#REF!)","v":{"$error":"#REF!"}},{"$f":"IF(#REF!=0,\"\",#REF!)","v":{"$error":"#REF!"}},{"$f":"IF(#REF!=0,\"\",#REF!)","v":{"$error":"#REF!"}},{"$f":"IF(#REF!=0,\"\",#REF!)","v":{"$error":"#REF!"}},{"$f":"IF(#REF!=0,\"\",#REF!)","v":{"$error":"#REF!"}},{"$f":"IF(#REF!=0,\"\",#REF!)","v":{"$error":"#REF!"}},{"$f":"IF(#REF!=0,\"\",#REF!)","v":{"$error":"#REF!"}},{"$f":"IF(#REF!=0,\"\",#REF!)","v":{"$error":"#REF!"}},{"$f":"IF(#REF!=0,\"\",#REF!)","v":{"$error":"#REF!"}},{"$f":"IF(#REF!=0,\"\",#REF!)","v":{"$error":"#REF!"}}]
[{"$f":"#REF!","v":{"$error":"#REF!"}},{"$f":"#REF!","v":{"$error":"#REF!"}},{"$f":"#REF!","v":{"$error":"#REF!"}},{"$f":"#REF!","v":{"$error":"#REF!"}},{"$f":"#REF!","v":{"$error":"#REF!"}},{"$f":"#REF!","v":{"$error":"#REF!"}},{"$f":"#REF!","v":{"$error":"#REF!"}},{"$f":"#REF!","v":{"$error":"#REF!"}}]
[{"$f":"#REF!","v":{"$error":"#REF!"}},{"$f":"#REF!","v":{"$error":"#REF!"}},{"$f":"#REF!","v":{"$error":"#REF!"}},{"$f":"#REF!","v":{"$error":"#REF!"}},{"$f":"#REF!","v":{"$error":"#REF!"}},{"$f":"IF(#REF!=0,\"\",#REF!)","v":{"$error":"#REF!"}},{"$f":"IF(#REF!=0,\"\",#REF!)","v":{"$error":"#REF!"}},{"$f":"IF(#REF!=0,\"\",#REF!)","v":{"$error":"#REF!"}}]
[]
[]
[]
[{"$f":"#REF!","v":{"$error":"#REF!"}},{"$f":"#REF!","v":{"$error":"#REF!"}},{"$f":"#REF!","v":{"$error":"#REF!"}},{"$f":"#REF!","v":{"$error":"#REF!"}},{"$f":"#REF!","v":{"$error":"#REF!"}},{"$f":"#REF!","v":{"$error":"#REF!"}},{"$f":"#REF!","v":{"$error":"#REF!"}},{"$f":"#REF!","v":{"$error":"#REF!"}},{"$f":"#REF!","v":{"$error":"#REF!"}},{"$f":"#REF!","v":{"$error":"#REF!"}},{"$f":"#REF!","v":{"$error":"#REF!"}},{"$f":"#REF!","v":{"$error":"#REF!"}},{"$f":"#REF!","v":{"$error":"#REF!"}},{"$f":"#REF!","v":{"$error":"#REF!"}},{"$f":"#REF!","v":{"$error":"#REF!"}},{"$f":"#REF!","v":{"$error":"#REF!"}},{"$f":"#REF!","v":{"$error":"#REF!"}},{"$f":"#REF!","v":{"$error":"#REF!"}},{"$f":"#REF!","v":{"$error":"#REF!"}},{"$f":"#REF!","v":{"$error":"#REF!"}},{"$f":"#REF!","v":{"$error":"#REF!"}},{"$f":"#REF!","v":{"$error":"#REF!"}},{"$f":"#REF!","v":{"$error":"#REF!"}},{"$f":"#REF!","v":{"$error":"#REF!"}},{"$f":"#REF!","v":{"$error":"#REF!"}},{"$f":"#REF!","v":{"$error":"#REF!"}}]
[{"$f":"#REF!","v":{"$error":"#REF!"}},{"$f":"#REF!","v":{"$error":"#REF!"}},{"$f":"#REF!","v":{"$error":"#REF!"}},{"$f":"#REF!","v":{"$error":"#REF!"}}]
[{"$f":"#REF!","v":{"$error":"#REF!"}},{"$f":"#REF!","v":{"$error":"#REF!"}},{"$f":"#REF!","v":{"$error":"#REF!"}},{"$f":"#REF!","v":{"$error":"#REF!"}},{"$f":"#REF!","v":{"$error":"#REF!"}},{"$f":"#REF!","v":{"$error":"#REF!"}},{"$f":"#REF!","v":{"$error":"#REF!"}},{"$f":"#REF!","v":{"$error":"#REF!"}},{"$f":"#REF!","v":{"$error":"#REF!"}},{"$f":"#REF!","v":{"$error":"#REF!"}},{"$f":"#REF!","v":{"$error":"#REF!"}},{"$f":"#REF!","v":{"$error":"#REF!"}},{"$f":"#REF!","v":{"$error":"#REF!"}},{"$f":"#REF!","v":{"$error":"#REF!"}},{"$f":"#REF!","v":{"$error":"#REF!"}},{"$f":"#REF!","v":{"$error":"#REF!"}},{"$f":"#REF!","v":{"$error":"#REF!"}},{"$f":"#REF!","v":{"$error":"#REF!"}},{"$f":"#REF!","v":{"$error":"#REF!"}},{"$f":"#REF!","v":{"$error":"#REF!"}},{"$f":"#REF!","v":{"$error":"#REF!"}},{"$f":"#REF!","v":{"$error":"#REF!"}},{"$f":"#REF!","v":{"$error":"#REF!"}},{"$f":"#REF!","v":{"$error":"#REF!"}},{"$f":"#REF!","v":{"$error":"#REF!"}},{"$f":"#REF!","v":{"$error":"#REF!"}}]
[{"$f":"#REF!","v":{"$error":"#REF!"}},{"$f":"IF(#REF!=0,\"\",#REF!)","v":{"$error":"#REF!"}},{"$f":"IF(#REF!=0,\"\",#REF!)","v":{"$error":"#REF!"}},{"$f":"IF(#REF!=0,\"\",#REF!)","v":{"$error":"#REF!"}},{"$f":"IF(#REF!=0,\"\",#REF!)","v":{"$error":"#REF!"}},{"$f":"IF(#REF!=0,\"\",#REF!)","v":{"$error":"#REF!"}},{"$f":"IF(#REF!=0,\"\",#REF!)","v":{"$error":"#REF!"}},{"$f":"IF(#REF!=0,\"\",#REF!)","v":{"$error":"#REF!"}},{"$f":"IF(#REF!=0,\"\",#REF!)","v":{"$error":"#REF!"}},{"$f":"IF(#REF!=0,\"\",#REF!)","v":{"$error":"#REF!"}},{"$f":"IF(#REF!=0,\"\",#REF!)","v":{"$error":"#REF!"}},{"$f":"IF(#REF!=0,\"\",#REF!)","v":{"$error":"#REF!"}},{"$f":"IF(#REF!=0,\"\",#REF!)","v":{"$error":"#REF!"}},{"$f":"IF(#REF!=0,\"\",#REF!)","v":{"$error":"#REF!"}},{"$f":"IF(#REF!=0,\"\",#REF!)","v":{"$error":"#REF!"}},{"$f":"IF(#REF!=0,\"\",#REF!)","v":{"$error":"#REF!"}},{"$f":"IF(#REF!=0,\"\",#REF!)","v":{"$error":"#REF!"}},{"$f":"IF(#REF!=0,\"\",#REF!)","v":{"$error":"#REF!"}},{"$f":"IF(#REF!=0,\"\",#REF!)","v":{"$error":"#REF!"}},{"$f":"IF(#REF!=0,\"\",#REF!)","v":{"$error":"#REF!"}},{"$f":"IF(#REF!=0,\"\",#REF!)","v":{"$error":"#REF!"}},{"$f":"IF(#REF!=0,\"\",#REF!)","v":{"$error":"#REF!"}},{"$f":"IF(#REF!=0,\"\",#REF!)","v":{"$error":"#REF!"}},{"$f":"IF(#REF!=0,\"\",#REF!)","v":{"$error":"#REF!"}}]
[{"$f":"#REF!","v":{"$error":"#REF!"}},{"$f":"#REF!","v":{"$error":"#REF!"}},{"$f":"#REF!","v":{"$error":"#REF!"}},{"$f":"#REF!","v":{"$error":"#REF!"}},{"$f":"#REF!","v":{"$error":"#REF!"}},{"$f":"#REF!","v":{"$error":"#REF!"}},{"$f":"#REF!","v":{"$error":"#REF!"}},{"$f":"#REF!","v":{"$error":"#REF!"}}]
[{"$f":"#REF!","v":{"$error":"#REF!"}},{"$f":"#REF!","v":{"$error":"#REF!"}},{"$f":"#REF!","v":{"$error":"#REF!"}},{"$f":"#REF!","v":{"$error":"#REF!"}},{"$f":"#REF!","v":{"$error":"#REF!"}},{"$f":"IF(#REF!=0,\"\",#REF!)","v":{"$error":"#REF!"}},{"$f":"IF(#REF!=0,\"\",#REF!)","v":{"$error":"#REF!"}},{"$f":"IF(#REF!=0,\"\",#REF!)","v":{"$error":"#REF!"}}]
[]
[]
[]
[{"$f":"#REF!","v":{"$error":"#REF!"}},{"$f":"#REF!","v":{"$error":"#REF!"}},{"$f":"#REF!","v":{"$error":"#REF!"}},{"$f":"#REF!","v":{"$error":"#REF!"}},{"$f":"#REF!","v":{"$error":"#REF!"}},{"$f":"#REF!","v":{"$error":"#REF!"}},{"$f":"#REF!","v":{"$error":"#REF!"}},{"$f":"#REF!","v":{"$error":"#REF!"}},{"$f":"#REF!","v":{"$error":"#REF!"}},{"$f":"#REF!","v":{"$error":"#REF!"}},{"$f":"#REF!","v":{"$error":"#REF!"}},{"$f":"#REF!","v":{"$error":"#REF!"}},{"$f":"#REF!","v":{"$error":"#REF!"}},{"$f":"#REF!","v":{"$error":"#REF!"}},{"$f":"#REF!","v":{"$error":"#REF!"}},{"$f":"#REF!","v":{"$error":"#REF!"}},{"$f":"#REF!","v":{"$error":"#REF!"}},{"$f":"#REF!","v":{"$error":"#REF!"}},{"$f":"#REF!","v":{"$error":"#REF!"}},{"$f":"#REF!","v":{"$error":"#REF!"}},{"$f":"#REF!","v":{"$error":"#REF!"}},{"$f":"#REF!","v":{"$error":"#REF!"}},{"$f":"#REF!","v":{"$error":"#REF!"}},{"$f":"#REF!","v":{"$error":"#REF!"}},{"$f":"#REF!","v":{"$error":"#REF!"}},{"$f":"#REF!","v":{"$error":"#REF!"}},{"$f":"#REF!","v":{"$error":"#REF!"}},{"$f":"#REF!","v":{"$error":"#REF!"}},{"$f":"#REF!","v":{"$error":"#REF!"}}]
[{"$f":"#REF!","v":{"$error":"#REF!"}},{"$f":"#REF!","v":{"$error":"#REF!"}},{"$f":"#REF!","v":{"$error":"#REF!"}},{"$f":"#REF!","v":{"$error":"#REF!"}}]
[{"$f":"#REF!","v":{"$error":"#REF!"}},{"$f":"#REF!","v":{"$error":"#REF!"}},{"$f":"#REF!","v":{"$error":"#REF!"}},{"$f":"#REF!","v":{"$error":"#REF!"}},{"$f":"#REF!","v":{"$error":"#REF!"}},{"$f":"#REF!","v":{"$error":"#REF!"}},{"$f":"#REF!","v":{"$error":"#REF!"}},{"$f":"#REF!","v":{"$error":"#REF!"}},{"$f":"#REF!","v":{"$error":"#REF!"}},{"$f":"#REF!","v":{"$error":"#REF!"}},{"$f":"#REF!","v":{"$error":"#REF!"}},{"$f":"#REF!","v":{"$error":"#REF!"}},{"$f":"#REF!","v":{"$error":"#REF!"}},{"$f":"#REF!","v":{"$error":"#REF!"}},{"$f":"#REF!","v":{"$error":"#REF!"}},{"$f":"#REF!","v":{"$error":"#REF!"}},{"$f":"#REF!","v":{"$error":"#REF!"}},{"$f":"#REF!","v":{"$error":"#REF!"}},{"$f":"#REF!","v":{"$error":"#REF!"}},{"$f":"#REF!","v":{"$error":"#REF!"}},{"$f":"#REF!","v":{"$error":"#REF!"}},{"$f":"#REF!","v":{"$error":"#REF!"}},{"$f":"#REF!","v":{"$error":"#REF!"}},{"$f":"#REF!","v":{"$error":"#REF!"}},{"$f":"#REF!","v":{"$error":"#REF!"}},{"$f":"#REF!","v":{"$error":"#REF!"}},{"$f":"#REF!","v":{"$error":"#REF!"}},{"$f":"#REF!","v":{"$error":"#REF!"}},{"$f":"#REF!","v":{"$error":"#REF!"}}]
[{"$f":"#REF!","v":{"$error":"#REF!"}},{"$f":"IF(#REF!=\"\",\"\",#REF!)","v":{"$error":"#REF!"}},{"$f":"IF(#REF!=\"\",\"\",#REF!)","v":{"$error":"#REF!"}},{"$f":"IF(#REF!=\"\",\"\",#REF!)","v":{"$error":"#REF!"}},{"$f":"IF(#REF!=\"\",\"\",#REF!)","v":{"$error":"#REF!"}},{"$f":"IF(#REF!=\"\",\"\",#REF!)","v":{"$error":"#REF!"}},{"$f":"IF(#REF!=\"\",\"\",#REF!)","v":{"$error":"#REF!"}},{"$f":"IF(#REF!=\"\",\"\",#REF!)","v":{"$error":"#REF!"}},{"$f":"IF(#REF!=\"\",\"\",#REF!)","v":{"$error":"#REF!"}},{"$f":"IF(#REF!=\"\",\"\",#REF!)","v":{"$error":"#REF!"}},{"$f":"IF(#REF!=\"\",\"\",#REF!)","v":{"$error":"#REF!"}},{"$f":"IF(#REF!=\"\",\"\",#REF!)","v":{"$error":"#REF!"}},{"$f":"IF(#REF!=\"\",\"\",#REF!)","v":{"$error":"#REF!"}},{"$f":"IF(#REF!=\"\",\"\",#REF!)","v":{"$error":"#REF!"}},{"$f":"IF(#REF!=\"\",\"\",#REF!)","v":{"$error":"#REF!"}},{"$f":"IF(#REF!=\"\",\"\",#REF!)","v":{"$error":"#REF!"}},{"$f":"IF(#REF!=\"\",\"\",#REF!)","v":{"$error":"#REF!"}},{"$f":"IF(#REF!=\"\",\"\",#REF!)","v":{"$error":"#REF!"}},{"$f":"IF(#REF!=\"\",\"\",#REF!)","v":{"$error":"#REF!"}},{"$f":"IF(#REF!=\"\",\"\",#REF!)","v":{"$error":"#REF!"}},{"$f":"IF(#REF!=\"\",\"\",#REF!)","v":{"$error":"#REF!"}},{"$f":"IF(#REF!=\"\",\"\",#REF!)","v":{"$error":"#REF!"}},{"$f":"IF(#REF!=\"\",\"\",#REF!)","v":{"$error":"#REF!"}},{"$f":"IF(#REF!=\"\",\"\",#REF!)","v":{"$error":"#REF!"}},{"$f":"IF(#REF!=\"\",\"\",#REF!)","v":{"$error":"#REF!"}},{"$f":"IF(#REF!=\"\",\"\",#REF!)","v":{"$error":"#REF!"}},{"$f":"IF(#REF!=\"\",\"\",#REF!)","v":{"$error":"#REF!"}}]
[{"$f":"#REF!","v":{"$error":"#REF!"}},{"$f":"#REF!","v":{"$error":"#REF!"}},{"$f":"#REF!","v":{"$error":"#REF!"}},{"$f":"#REF!","v":{"$error":"#REF!"}},{"$f":"#REF!","v":{"$error":"#REF!"}},{"$f":"#REF!","v":{"$error":"#REF!"}},{"$f":"#REF!","v":{"$error":"#REF!"}},{"$f":"#REF!","v":{"$error":"#REF!"}}]
[{"$f":"#REF!","v":{"$error":"#REF!"}},{"$f":"#REF!","v":{"$error":"#REF!"}},{"$f":"#REF!","v":{"$error":"#REF!"}},{"$f":"#REF!","v":{"$error":"#REF!"}},{"$f":"#REF!","v":{"$error":"#REF!"}},{"$f":"IF(#REF!=\"\",\"\",#REF!)","v":{"$error":"#REF!"}},{"$f":"IF(#REF!=\"\",\"\",#REF!)","v":{"$error":"#REF!"}},{"$f":"IF(#REF!=\"\",\"\",#REF!)","v":{"$error":"#REF!"}}]

{"sheet":"Fresh Quality","index":6,"n_rows":350,"n_cols":26,"rows_kept":350,"cut":false,"hidden":false,"merged":[]}
[]
["Question No.",1,2,3,4,5,6,7,8,9,10,11,12,13,14,15,16.100000000000001,16.2,16.3,16.399999999999999,16.5,16.600000000000001,17,18,"Total Score","Quality Score"]
["Short Questions","Duration of the exposure ","Biological endpoint","Biological effect stated or not","Biological effect quantified or not","Appropriate controls","Control & contaminant concentration","Test acceptability criteria","Characteristics of the test organism"," Type of test media","Type of exposure","Contaminant concentrations","Parallel reference toxicant toxicity tests","Concentration–response relationship","Determine the toxicity","NOEC/LOEC or LC/EC/BEC","pH","POC","Particle size","AVS & 1-M HCl extractable metals","Dissolved contaminants","Dissolved ammonia and sulfide","Temperature","Grade or purity"]
["Marks Awarded","10 or 0","10,5 or 0","5 or 0 ","5 or 0 ","5 or 0 ","5 or 0 ","5 or 0 ","5 or 0 ","5 or 0 ","4 or 0","4 or 0","4 or 0","4 or 0","4 or 0","4 or 0","3,1,or 0","3,1,or 0","3,1,or 0","3,1,or 0","3,1,or 0","3,1,or 0","3 or 0","3 or 0"]
["Max. Possible Score",10,10,5,5,5,5,5,5,5,4,4,4,4,4,4,3,3,3,3,3,3,3,3,{"$f":"SUM(B5:X5)","v":103}]
["Category","Freshwater","Paper and data unique identifier(eg. 1-1,10-150)","1-2"]
["Scores",10,10,5,5,5,5,5,0,5,4,0,0,0,4,4,3,3,3,3,1,1,3,3,82,0.79611650485436891]
["Answers","","","","","","","","","","","","","","","","","","","","","","",""]
["Category","Freshwater","Paper and data unique identifier(eg. 1-1,10-150)","886-1"]
["Scores",10,5,5,5,5,5,0,5,5,4,0,0,0,4,4,3,3,0,0,3,3,3,3,75,0.72815533980582525]
["Answers","48 hours","Survival: Mortality","","","Negative controls","Triplicate","","Tadpoles; age size, weight and gosner stage recorded (GS 29-30)","","Static","","","","","",7.4,0,"","","165 umhos/cm","6.5 mg/L","22 degrees C",""]
["Category","Freshwater","Paper and data unique identifier(eg. 1-1,10-150)","886-2"]
["Scores",10,5,5,5,5,5,0,5,5,4,0,0,0,4,4,3,3,0,0,3,3,3,3,75,0.72815533980582525]
["Answers","48 hours","Survival: Mortality","","","Negative controls","Triplicate","","Tadpoles; age size, weight and gosner stage recorded (GS 29-30)","","Static","","","","","",7.4,0,"","","165 umhos/cm","6.5 mg/L","22 degrees C",""]
["Category","Freshwater","Paper and data unique identifier(eg. 1-1,10-150)","886-3"]
["Scores",10,5,5,5,5,5,0,5,5,4,0,0,0,4,4,3,3,0,0,3,3,3,3,75,0.72815533980582525]
["Answers","48 hours","Survival: Mortality","","","Negative controls","Triplicate","","Tadpoles; age size, weight and gosner stage recorded (GS 29-30)","","Static","","","","","",7.4,0,"","","165 umhos/cm","6.5 mg/L","22 degrees C",""]
["Category","Freshwater","Paper and data unique identifier(eg. 1-1,10-150)","886-4"]
["Scores",10,5,5,5,5,5,0,5,5,4,0,0,0,4,4,3,3,0,0,3,3,3,3,75,0.72815533980582525]
["Answers","48 hours","Survival: Mortality","","","Negative controls","Triplicate","","Tadpoles; age size, weight and gosner stage recorded (GS 29-30)","","Static","","","","","",7.4,0,"","","165 umhos/cm","6.5 mg/L","22 degrees C",""]
["Category","Freshwater","Paper and data unique identifier(eg. 1-1,10-150)","886-5"]
["Scores",10,5,5,5,5,5,0,5,5,4,0,0,0,4,4,3,3,0,0,3,3,3,3,75,0.72815533980582525]
["Answers","48 hours","Survival: Mortality","","","Negative controls","Triplicate","","Tadpoles; age size, weight and gosner stage recorded (GS 29-30)","","Static","","","","","",7.4,0,"","","165 umhos/cm","6.5 mg/L","22 degrees C",""]
["Category","Freshwater","Paper and data unique identifier(eg. 1-1,10-150)","886-6"]
["Scores",10,5,5,5,5,5,0,5,5,4,0,0,0,4,4,3,3,0,0,3,3,3,3,75,0.72815533980582525]
["Answers","48 hours","Survival: Mortality","","","Negative controls","Triplicate","","Tadpoles; age size, weight and gosner stage recorded (GS 29-30)","","Static","","","","","",7.4,0,"","","165 umhos/cm","6.5 mg/L","22 degrees C",""]
["Category","Freshwater","Paper and data unique identifier(eg. 1-1,10-150)","887-1"]
["Scores",10,10,5,5,5,5,0,5,5,0,0,0,4,0,4,3,0,0,0,0,0,3,3,67,0.65048543689320393]
["Answers","7 days","Population: Relative Growth Rate (measured on leaf surface-area basis)","","","","","","1 frond used","K-medium","","","","","","",5,"","","","","","24 degrees C","95% technical grade"]
["Category","Freshwater","Paper and data unique identifier(eg. 1-1,10-150)","887-2"]
["Scores",10,10,5,5,5,5,0,5,5,0,0,0,4,0,4,3,0,0,0,0,0,3,3,67,0.65048543689320393]
["Answers","7 days","Population: Relative Growth Rate (measured on leaf surface-area basis)","","","","","","1 frond used","K-medium","","","","","","",5,"","","","","","24 degrees C","95% technical grade"]
["Category","Freshwater","Paper and data unique identifier(eg. 1-1,10-150)","887-3"]
["Scores",10,10,5,5,5,5,0,5,5,4,0,0,4,0,4,3,0,0,0,0,0,3,3,71,0.68932038834951459]
["Answers","48 hours","Population: Relative Growth Rate (measured on a chlorophyll basis for algal density)","","","","","","Initial algal density recorded","According to ISO guideline","Shaken: 300 RPM","","","","","","8-8.5","","","","","","24 degrees C","95% technical grade"]
["Category","Freshwater","Paper and data unique identifier(eg. 1-1,10-150)","887-4"]
["Scores",10,10,5,5,5,5,0,5,5,4,0,0,4,0,4,3,0,0,0,0,0,3,3,71,0.68932038834951459]
["Answers","48 hours","Population: Relative Growth Rate (measured on a chlorophyll basis for algal density)","","","","","","Initial algal density recorded","According to ISO guideline","Shaken: 300 RPM","","","","","","8-8.5","","","","","","24 degrees C","95% technical grade"]
["Category","Freshwater","Paper and data unique identifier(eg. 1-1,10-150)","888-1"]
["Scores",10,10,5,5,5,5,0,5,5,0,0,0,4,4,4,0,0,0,0,0,0,0,3,65,0.6310679611650486]
["Answers","72 hours","","","","","","","24 hour old culture","AAP medium","","","","","","","","","","","","","","Reagent grade"]
["Category","Freshwater","Paper and data unique identifier(eg. 1-1,10-150)","888-2"]
["Scores",10,10,5,5,5,5,0,5,5,0,0,0,4,4,4,0,0,0,0,0,0,0,3,65,0.6310679611650486]
["Answers","72 hours","","","","","","","24 hour old culture","AAP medium","","","","","","","","","","","","","","Reagent grade"]
["Category","Freshwater","Paper and data unique identifier(eg. 1-1,10-150)","888-3"]
["Scores",10,10,5,5,5,5,0,5,5,0,0,0,4,4,4,0,0,0,0,0,0,0,3,65,0.6310679611650486]
["Answers","72 hours","","","","","","","24 hour old culture","AAP medium","","","","","","","","","","","","","","Reagent grade"]
["Category","Freshwater","Paper and data unique identifier(eg. 1-1,10-150)","889-1"]
["Scores",10,10,5,5,5,5,0,5,5,0,0,0,4,4,0,1,0,0,0,1,0,3,3,66,0.64077669902912626]
["Answers","8 days","Population: Dry Weight - Biomass ","","","","","","Four apical shoots (19cm long) of Elodea canadensis                                                    Four apical shoots of Myriophyllum spicatum       Both had wet weights recorded. ","","","","","","","","","","","","","","22 degrees C","Analytical grade"]
["Category","Freshwater","Paper and data unique identifier(eg. 1-1,10-150)","889-1"]
["Scores",10,10,5,5,5,5,0,5,5,0,0,0,0,4,0,0,0,0,0,0,0,3,3,60,0.58252427184466016]
["Answers","8 days","Population: Dry Weight - Biomass ","","","","","","Four apical shoots (19cm long) of Elodea canadensis                                                    Four apical shoots of Myriophyllum spicatum       Both had wet weights recorded. ","","","","","","","","","","","","","","22 degrees","Analytical grade"]
["Category","Freshwater","Paper and data unique identifier(eg. 1-1,10-150)","889-1"]
["Scores",10,10,5,5,5,5,0,5,5,0,0,0,4,4,0,0,0,0,0,0,0,3,3,64,0.62135922330097082]
["Answers","8 days","Population: Dry Weight - Biomass ","","","","","","Four apical shoots (19cm long) of Elodea canadensis                                                    Four apical shoots of Myriophyllum spicatum       Both had wet weights recorded. ","","","","","","","","","","","","","","22 degrees","Analytical grade"]
["Category","Freshwater","Paper and data unique identifier(eg. 1-1,10-150)","889-2"]
["Scores",10,10,5,5,5,5,0,5,5,0,0,0,4,4,0,0,0,0,0,0,0,3,3,64,0.62135922330097082]
["Answers","8 days","Population: Dry Weight - Biomass ","","","","","","Four apical shoots (19cm long) of Elodea canadensis                                                    Four apical shoots of Myriophyllum spicatum       Both had wet weights recorded. ","","","","","","","","","","","","","","22 degrees","Analytical grade"]
["Category","Freshwater","Paper and data unique identifier(eg. 1-1,10-150)","889-3"]
["Scores",10,10,5,5,5,5,0,5,5,0,0,0,0,4,0,0,0,0,0,0,0,3,3,60,0.58252427184466016]
["Answers","8 days","Population: Dry Weight - Biomass ","","","","","","Four apical shoots (19cm long) of Elodea canadensis                                                    Four apical shoots of Myriophyllum spicatum       Both had wet weights recorded. ","","","","","","","","","","","","","","22 degrees","Analytical grade"]
["Category","Freshwater","Paper and data unique identifier(eg. 1-1,10-150)","889-4"]
["Scores",10,10,5,5,5,5,0,5,5,0,0,0,0,4,0,0,0,0,0,0,0,3,3,60,0.58252427184466016]
["Answers","8 days","Population: Dry Weight - Biomass ","","","","","","Four apical shoots (19cm long) of Elodea canadensis                                                    Four apical shoots of Myriophyllum spicatum       Both had wet weights recorded. ","","","","","","","","","","","","","","22 degrees","Analytical grade"]
["Category","Freshwater","Paper and data unique identifier(eg. 1-1,10-150)","889-5"]
["Scores",10,10,5,5,5,5,0,5,5,0,0,0,0,4,0,0,0,0,0,0,0,3,3,60,0.58252427184466016]
["Answers","8 days","Population: Dry Weight - Biomass ","","","","","","Four apical shoots (19cm long) of Elodea canadensis                                                    Four apical shoots of Myriophyllum spicatum       Both had wet weights recorded. ","","","","","","","","","","","","","","22 degrees","Analytical grade"]
["Category","Freshwater","Paper and data unique identifier(eg. 1-1,10-150)","889-6"]
["Scores",10,5,5,5,5,5,0,5,5,0,0,0,4,4,0,0,0,0,0,0,0,3,3,59,0.57281553398058249]
["Answers","8 days","Population: Shoot growth (length)","","","","","","Four apical shoots (19cm long) of Elodea canadensis                                                    Four apical shoots of Myriophyllum spicatum       Both had wet weights recorded. ","","","","","","","","","","","","","","22 degrees","Analytical grade"]
["Category","Freshwater","Paper and data unique identifier(eg. 1-1,10-150)","889-7"]
["Scores",10,5,5,5,5,5,0,5,5,0,0,0,4,4,0,0,0,0,0,0,0,3,3,59,0.57281553398058249]
["Answers","8 days","Population: Shoot growth (length)","","","","","","Four apical shoots (19cm long) of Elodea canadensis                                                    Four apical shoots of Myriophyllum spicatum       Both had wet weights recorded. ","","","","","","","","","","","","","","22 degrees","Analytical grade"]
["Category","Freshwater","Paper and data unique identifier(eg. 1-1,10-150)","889-1-GD"]
["Scores",10,5,0,0,5,5,0,5,0,0,0,0,4,4,0,3,0,0,0,3,0,0,3,47,0.4563106796116505]
["Answers","","","","","","","","","","","","","","","","","","","","","","",""]
["Category","Freshwater","Paper and data unique identifier(eg. 1-1,10-150)","889-2-GD"]
["Scores",10,5,0,0,5,5,0,5,0,0,0,0,4,4,0,3,0,0,0,3,0,0,3,47,0.4563106796116505]
["Answers","","","","","","","","","","","","","","","","","","","","","","",""]
["Category","Freshwater","Paper and data unique identifier(eg. 1-1,10-150)","889-3-GD"]
["Scores",10,5,5,0,5,5,0,5,0,0,0,0,4,4,4,3,0,0,0,3,0,3,3,59,0.57281553398058249]
["Answers","","","","Effect was not quantified","","","","","","","","","","","","","","","","","","",""]
["Category","Freshwater","Paper and data unique identifier(eg. 1-1,10-150)","889-3-GD"]
["Scores",10,5,5,0,5,5,0,5,0,0,0,0,4,4,4,3,0,0,0,3,0,3,3,59,0.57281553398058249]
["Answers","","","","Effect was not quantified","","","","","","","","","","","","","","","","","","",""]
["Category","Freshwater","Paper and data unique identifier(eg. 1-1,10-150)","889-3-GD"]
["Scores",10,5,5,0,5,5,0,5,0,0,0,0,4,4,4,3,0,0,0,3,0,3,3,59,0.57281553398058249]
["Answers","","","","Effect was not quantified","","","","","","","","","","","","","","","","","","",""]
["Category","Freshwater","Paper and data unique identifier(eg. 1-1,10-150)","889-3-GD"]
["Scores",10,5,5,0,5,5,0,5,0,0,0,0,4,4,4,3,0,0,0,3,0,3,3,59,0.57281553398058249]
["Answers","","","","Effect was not quantified","","","","","","","","","","","","","","","","","","",""]
["Category","Freshwater","Paper and data unique identifier(eg. 1-1,10-150)","887-1-GD"]
["Scores",10,10,5,5,5,5,0,0,5,0,0,4,0,4,4,3,0,0,0,0,0,0,3,63,0.61165048543689315]
["Answers","","","","","","","","","","","","","","","","","","","","","","",""]
["Category","Freshwater","Paper and data unique identifier(eg. 1-1,10-150)","887-2-GD"]
["Scores",10,10,5,5,5,5,0,5,0,4,0,0,0,4,4,3,0,0,0,0,0,0,3,63,0.61165048543689315]
["Answers","","","","","","","","","","","","","","","","","","","","","","",""]
["Category","Freshwater","Paper and data unique identifier(eg. 1-1,10-150)","888-1-GD"]
["Scores",10,10,5,5,5,5,5,5,5,4,0,4,4,4,4,1,0,0,0,0,0,0,3,79,0.76699029126213591]
["Answers","","","","","","","","","","","","","","","","","","","","","","",""]
[]
[]
[]
["Category","Freshwater","Paper and data unique identifier(eg. 1-1,10-150)","886-2-GD"]
["Scores",10,5,5,5,5,5,0,5,5,4,0,0,0,4,4,0,0,0,0,0,0,3,0,60,0.58281553398058294]
["Answers","","","","","","","","","","","","","","","","","","","","","","",""]
["Category","Freshwater","Paper and data unique identifier(eg. 1-1,10-150)","886-3-GD"]
["Scores",10,5,5,5,5,5,0,5,5,4,0,0,0,4,4,0,0,0,0,0,0,3,0,60,0.58252427184466016]
["Answers","","","","","","","","","","","","","","","","","","","","","","",""]
["Category","Freshwater","Paper and data unique identifier(eg. 1-1,10-150)","867-2-GD"]
["Scores",10,10,5,5,5,5,0,5,5,0,0,0,0,4,0,0,0,0,0,0,0,0,3,57,0.55339805825242716]
["Answers","","","","","","","","","","","","","","","","","","","","","","",""]
["Category","Freshwater","Paper and data unique identifier(eg. 1-1,10-150)","867-5-GD"]
["Scores",10,10,5,5,5,5,0,5,5,0,0,0,0,4,0,0,0,0,0,0,0,0,3,57,0.55339805825242716]
["Answers","","","","","","","","","","","","","","","","","","","","","","",""]
["Category","Freshwater","Paper and data unique identifier(eg. 1-1,10-150)","867-9-GD"]
["Scores",10,5,5,5,5,5,0,5,5,0,0,0,0,4,0,0,0,0,0,0,0,0,3,52,0.50485436893203883]
["Answers","","","","","","","","","","","","","","","","","","","","","","",""]
["Category","Freshwater","Paper and data unique identifier(eg. 1-1,10-150)","867-10-GD"]
["Scores",10,5,5,5,5,5,0,5,5,0,0,0,0,4,0,0,0,0,0,0,0,0,3,52,0.50485436893203883]
["Answers","","","","","","","","","","","","","","","","","","","","","","",""]
["Category","Freshwater","Paper and data unique identifier(eg. 1-1,10-150)","927-1"]
["Scores",10,5,5,5,5,5,5,0,5,4,0,0,4,4,4,3,1,0,0,0,0,0,3,68,0.66019417475728159]
["Answers","","","","","","","","","","","","","","","","","","","","","","",""]
["Category","Freshwater","Paper and data unique identifier(eg. 1-1,10-150)","927-2"]
["Scores",10,5,5,5,5,5,5,0,5,4,0,0,4,4,4,3,1,0,0,0,0,0,3,68,0.66019417475728159]
["Answers","","","","","","","","","","","","","","","","","","","","","","",""]
["Category","Freshwater","Paper and data unique identifier(eg. 1-1,10-150)","927-3"]
["Scores",10,5,5,5,5,5,5,0,5,4,0,0,0,4,4,3,1,0,0,0,0,0,3,64,0.62135922330097082]
["Answers","","","","","","","","","","","","","","","","","","","","","","",""]
["Category","Freshwater","Paper and data unique identifier(eg. 1-1,10-150)","927-4"]
["Scores",10,5,5,5,5,5,5,0,5,4,0,0,0,4,4,3,1,0,0,0,0,0,3,64,0.62135922330097082]
["Answers","","","","","","","","","","","","","","","","","","","","","","",""]
["Category","Freshwater","Paper and data unique identifier(eg. 1-1,10-150)","928-1"]
["Scores",10,10,5,5,5,5,5,5,5,4,0,0,4,4,4,1,0,0,0,0,1,3,3,79,0.76699029126213591]
["Answers","","","","","","","","","","","","","","","","","","","","","","",""]
["Category","Freshwater","Paper and data unique identifier(eg. 1-1,10-150)","928-2"]
["Scores",10,10,5,5,5,5,5,5,5,4,0,0,4,4,4,1,0,0,0,0,1,3,3,79,0.76699029126213591]
["Answers","","","","","","","","","","","","","","","","","","","","","","",""]
["Category","Freshwater","Paper and data unique identifier(eg. 1-1,10-150)","928-3"]
["Scores",10,10,5,5,5,5,5,5,5,4,0,0,4,4,4,1,0,0,0,0,1,3,3,79,0.76699029126213591]
["Answers","","","","","","","","","","","","","","","","","","","","","","",""]
["Category","Freshwater","Paper and data unique identifier(eg. 1-1,10-150)","929-1"]
["Scores",10,10,5,5,5,5,0,5,5,4,4,0,0,4,4,3,0,0,0,0,0,3,3,75,0.72815533980582525]
["Answers","","","","","","","","","","","","","","","","","","","","","","",""]
["Category","Freshwater","Paper and data unique identifier(eg. 1-1,10-150)","929-2"]
["Scores",10,10,5,5,5,5,0,5,5,4,4,0,0,4,4,3,0,0,0,0,0,3,3,75,0.72815533980582525]
["Answers","","","","","","","","","","","","","","","","","","","","","","",""]
["Category","Freshwater","Paper and data unique identifier(eg. 1-1,10-150)","929-3"]
["Scores",10,10,5,5,5,5,0,5,5,4,4,0,0,4,0,3,0,0,0,0,0,3,3,71,0.68932038834951459]
["Answers","","","","","","","","","","","","","","","","","","","","","","",""]
["Category","Freshwater","Paper and data unique identifier(eg. 1-1,10-150)","930-1"]
["Scores",10,10,5,5,5,5,5,5,5,4,0,0,0,4,4,3,1,0,0,0,0,3,3,77,0.74757281553398058]
["Answers","","","","","","","","","","","","","","","","","","","","","","",""]
["Category","Freshwater","Paper and data unique identifier(eg. 1-1,10-150)","927-1-OK"]
["Scores",10,10,5,5,5,5,2,5,5,4,0,0,4,4,4,3,0,0,0,0,0,3,3,77,0.74757281553398058]
["Answers","7 days","Growth Rate: defined \"based on counting of fronds - at start, both media renewals and at the end of the test\".","EC","10% and 50%","3x solvent control (acetone), 3x no-toxicant controls","Three reps (6x controls)","OECD 2006","8 fronds (2-3 colonies) used. Origin of plant is stated.","AAP medium (OECD 2006)","Static-renewal","Only the highest concentration was measured via LC-MS/MS- the rest were nominal.","","For light test - yes. For 12:12 light:dark test - no.","","95% CI","7.5-8.8","","","","","","24 +/- 2 degrees C","90-96% purity (analytical grade)"]
["Category","Freshwater","Paper and data unique identifier(eg. 1-1,10-150)","927-2-OK"]
["Scores",10,10,5,5,5,5,2,5,5,4,0,0,4,4,4,3,0,0,0,0,0,3,3,77,0.74757281553398058]
["Answers","7 days","Growth Rate: defined \"based on counting of fronds - at start, both media renewals and at the end of the test\".","EC","10% and 50%","3x solvent control (acetone), 3x no-toxicant controls","Three reps (6x controls)","OECD 2006","8 fronds (2-3 colonies) used. Origin of plant is stated.","AAP medium (OECD 2006)","Static-renewal","Only the highest concentration was measured via LC-MS/MS- the rest were nominal.","","For light test - yes. For 12:12 light:dark test - no.","","95% CI","7.5-8.8","","","","","","24 +/- 2 degrees C","90-96% purity (analytical grade)"]
["Category","Freshwater","Paper and data unique identifier(eg. 1-1,10-150)","927-3-OK"]
["Scores",10,10,5,5,5,5,2,5,5,4,0,0,0,4,4,3,0,0,0,0,0,3,3,73,0.70873786407766992]
["Answers","7 days","Growth Rate: defined \"based on counting of fronds - at start, both media renewals and at the end of the test\".","EC","10% and 50%","3x solvent control (acetone), 3x no-toxicant controls","Three reps (6x controls)","OECD 2006","8 fronds (2-3 colonies) used. Origin of plant is stated.","AAP medium (OECD 2006)","Static-renewal","Only the highest concentration was measured via LC-MS/MS- the rest were nominal.","","For light test - yes. For 12:12 light:dark test - no.","","95% CI","7.5-8.8","","","","","","24 +/- 2 degrees C","90-96% purity (analytical grade)"]
["Category","Freshwater","Paper and data unique identifier(eg. 1-1,10-150)","927-4-OK"]
["Scores",10,10,5,5,5,5,2,5,5,4,0,0,0,4,4,3,0,0,0,0,0,3,3,73,0.70873786407766992]
["Answers","7 days","Growth Rate: defined \"based on counting of fronds - at start, both media renewals and at the end of the test\".","EC","10% and 50%","3x solvent control (acetone), 3x no-toxicant controls","Three reps (6x controls)","OECD 2006","8 fronds (2-3 colonies) used. Origin of plant is stated.","AAP medium (OECD 2006)","Static-renewal","Only the highest concentration was measured via LC-MS/MS- the rest were nominal.","","For light test - yes. For 12:12 light:dark test - no.","","95% CI","7.5-8.8","","","","","","24 +/- 2 degrees C","90-96% purity (analytical grade)"]
["Category","Freshwater","Paper and data unique identifier(eg. 1-1,10-150)","930-1-OK"]
["Scores",10,10,5,5,5,5,2,5,5,4,0,0,0,4,4,3,0,0,0,0,0,3,0,70,0.67961165048543692]
["Answers","7 days","Counting number of fronds at the end of the test, compared with the leaf count of controls at the end of the test. = Population Abundance. \"However, since the growth rate in the pulse test was not constant over the whole test period, it was considered more appropriate to use the biomass yield method\". ","EC",0.5,"3x reps for treatments and 6x reps for controls (3x solvent controls; 3x no-toxicant controls). ","Triplicated","OECD 2006","Exponential growth phase (8 fronds in each test).","AAP medium","Static-renewal (as in Rosenkrantz 2012)","Nominal","","","","","7.5-8.8 (as this is a recalculation of previous paper where the pH was stated as this.)","","","","","","24 +/- 2 degrees C",""]
["Category","Freshwater","Paper and data unique identifier(eg. 1-1,10-150)","930-2-OK"]
["Scores",10,10,5,5,5,5,2,5,5,4,0,0,0,4,4,0,0,0,0,0,0,3,0,67,0.65048543689320393]
["Answers","7 days","Counting number of fronds at the end of the test, compared with the leaf count of controls at the end of the test. = Population Abundance. \"However, since the growth rate in the pulse test was not constant over the whole test period, it was considered more appropriate to use the biomass yield method\". ","EC",0.5,"3x reps for treatments and 6x reps for controls (3x solvent controls; 3x no-toxicant controls). ","Triplicated","OECD 2006","Exponential growth phase (15-17 fronds in each test).","AAP medium","Static-renewal (as in Rosenkrantz 2012)","Nominal","","","","","","","","","","","24 +/- 2 degrees C",""]
["Category","Freshwater","Paper and data unique identifier(eg. 1-1,10-150)","928-1-OK"]
["Scores",10,10,0,5,5,5,2,5,5,4,0,0,4,4,4,1,0,1,0,0,1,3,3,72,0.69902912621359226]
["Answers","2 day and 4 day pulse tests.","Theoretical frond area over time (surface area).","","","","","OECD guidelines","Exponential growth phase (colonies of 3 fronds used for the test). ","Lemna growth medium","Semi-static (renewal)","Nominal","","","","95% CI","","","","","","","20 +/- 1 degrees C","Analytical grade"]
["Category","Freshwater","Paper and data unique identifier(eg. 1-1,10-150)","928-2-OK"]
["Scores",10,10,0,5,5,5,2,5,5,4,0,0,4,4,4,1,0,1,0,0,1,3,3,72,0.69902912621359226]
["Answers","2 day and 4 day pulse tests.","Theoretical frond area over time (surface area).","","","","","OECD guidelines","Exponential growth phase (colonies of 3 fronds used for the test). ","Lemna growth medium","Semi-static (renewal)","Nominal","","","","95% CI","","","","","","","20 +/- 1 degrees C","Analytical grade"]
["Category","Freshwater","Paper and data unique identifier(eg. 1-1,10-150)","928-3-OK"]
["Scores",10,10,0,5,5,5,2,5,5,4,0,0,4,4,4,1,0,1,0,0,1,3,3,72,0.69902912621359226]
["Answers","2 day and 4 day pulse tests.","Theoretical frond area over time (surface area).","","","","","OECD guidelines","Exponential growth phase (colonies of 3 fronds used for the test). ","Lemna growth medium","Semi-static (renewal)","Nominal","","","","95% CI","","","","","","","20 +/- 1 degrees C","Analytical grade"]
["Category","Freshwater","Paper and data unique identifier(eg. 1-1,10-150)","928-3-OK"]
["Scores",10,10,5,5,5,5,2,5,5,4,0,0,4,4,4,1,0,1,0,0,1,3,3,77,0.74757281553398058]
["Answers","2 day and 4 day pulse tests.","Theoretical frond area over time (surface area).","","","","","OECD guidelines","Exponential growth phase (colonies of 3 fronds used for the test). ","Lemna growth medium","Semi-static (renewal)","Nominal","","","","95% CI","","","","","","","20 +/- 1 degrees C","Analytical grade"]
["Category","Freshwater","Paper and data unique identifier(eg. 1-1,10-150)","928-4-OK"]
["Scores",10,10,0,5,5,5,2,5,5,4,0,0,4,4,4,1,0,1,0,0,1,3,3,72,0.69902912621359226]
["Answers","2 day and 4 day pulse tests.","Theoretical frond area over time (surface area).","","","","","OECD guidelines","Exponential growth phase (colonies of 3 fronds used for the test). ","Lemna growth medium","Semi-static (renewal)","Nominal","","","","95% CI","","","","","","","20 +/- 1 degrees C","Analytical grade"]
["Category","Freshwater","Paper and data unique identifier(eg. 1-1,10-150)","928-5-OK"]
["Scores",10,10,0,5,5,5,2,5,5,4,0,0,4,4,4,1,0,1,0,0,1,3,3,72,0.69902912621359226]
["Answers","2 day and 4 day pulse tests.","Theoretical frond area over time (surface area).","","","","","OECD guidelines","Exponential growth phase (colonies of 3 fronds used for the test). ","Lemna growth medium","Semi-static (renewal)","Nominal","","","","95% CI","","","","","","","20 +/- 1 degrees C","Analytical grade"]
["Category","Freshwater","Paper and data unique identifier(eg. 1-1,10-150)","928-6-OK"]
["Scores",10,10,5,5,5,5,2,5,5,4,0,0,4,4,4,1,0,1,0,0,1,3,3,77,0.74757281553398058]
["Answers","2 day and 4 day pulse tests.","Theoretical frond area over time (surface area).","","","","","OECD guidelines","Exponential growth phase (colonies of 3 fronds used for the test). ","Lemna growth medium","Semi-static (renewal)","Nominal","","","","95% CI","","","","","","","20 +/- 1 degrees C","Analytical grade"]
["Category","Freshwater","Paper and data unique identifier(eg. 1-1,10-150)","928-7-OK"]
["Scores",10,10,5,5,5,5,2,5,5,4,0,0,4,4,4,1,0,1,0,0,1,3,3,77,0.74757281553398058]
["Answers","Continuous 42 day test.","Theoretical frond area over time (surface area).","","","","","OECD guidelines","Exponential growth phase (colonies of 3 fronds used for the test). ","Lemna growth medium","Semi-static (renewal)","Nominal","","","","95% CI","","","","","","","20 +/- 1 degrees C","Analytical grade"]
["Category","Freshwater","Paper and data unique identifier(eg. 1-1,10-150)","928-8-OK"]
["Scores",10,10,0,5,5,5,2,5,5,4,0,0,4,4,4,1,0,1,0,0,1,3,3,72,0.69902912621359226]
["Answers","Continuous 42 day test.","Theoretical frond area over time (surface area).","","","","","OECD guidelines","Exponential growth phase (colonies of 3 fronds used for the test). ","Lemna growth medium","Semi-static (renewal)","Nominal","","","","95% CI","","","","","","","20 +/- 1 degrees C","Analytical grade"]
["Category","Freshwater","Paper and data unique identifier(eg. 1-1,10-150)","928-9-OK"]
["Scores",10,10,0,5,5,5,2,5,5,4,0,0,4,4,4,1,0,1,0,0,1,3,3,72,0.69902912621359226]
["Answers","Continuous 42 day test.","Theoretical frond area over time (surface area).","","","","","OECD guidelines","Exponential growth phase (colonies of 3 fronds used for the test). ","Lemna growth medium","Semi-static (renewal)","Nominal","","","","95% CI","","","","","","","20 +/- 1 degrees C","Analytical grade"]
["Category","Freshwater","Paper and data unique identifier(eg. 1-1,10-150)","929-1-OK"]
["Scores",10,10,5,5,0,0,0,5,5,4,4,0,0,4,4,3,0,0,0,0,0,3,3,65,0.6310679611650486]
["Answers","24 hour","Reproduction inhibition: counted by cell number","EC","5%, 50%","","","","Synchronous growth phase","Algal growth media","Vigorous stirring","","","","","","6.8 +/- 0.2","","","","","","","Analytical purity 99.5%"]
["Category","Freshwater","Paper and data unique identifier(eg. 1-1,10-150)","929-2-OK"]
["Scores",10,10,5,5,0,0,0,5,5,4,4,0,0,4,4,3,0,0,0,0,0,3,3,65,0.6310679611650486]
["Answers","24 hour","Reproduction inhibition: counted by cell number","EC","5%, 50%","","","","Synchronous growth phase","Algal growth media","Vigorous stirring","","","","","","6.8 +/- 0.2","","","","","","","Analytical purity 99.5%"]
["Category","Freshwater","Paper and data unique identifier(eg. 1-1,10-150)","929-3-OK"]
["Scores",10,10,0,5,0,0,0,5,5,4,4,0,0,4,4,3,0,0,0,0,0,3,3,60,0.58252427184466016]
["Answers","24 hour","Reproduction inhibition: counted by cell number","EC","5%, 50%","","","","Synchronous growth phase","Algal growth media","Vigorous stirring","","","","","","6.8 +/- 0.2","","","","","","","Analytical purity 99.5%"]
["Category","Freshwater","Paper and data unique identifier(eg. 1-1,10-150)","614-1"]
["Scores",10,10,5,5,5,5,0,5,5,4,4,0,4,4,0,0,0,0,0,0,0,3,3,72,0.69902912621359226]
["Answers","","","","","","","","","","","","","","","","","","","","","","",""]
["Category","Freshwater","Paper and data unique identifier(eg. 1-1,10-150)","614-1"]
["Scores",10,10,5,5,5,5,0,5,5,4,4,0,4,4,0,0,0,0,0,0,0,3,3,72,0.69902912621359226]
["Answers","","","","","","","","","","","","","","","","","","","","","","",""]
["Category","Freshwater","Paper and data unique identifier(eg. 1-1,10-150)","887-1-GD"]
["Scores",10,10,5,5,5,5,0,5,5,0,0,4,4,4,4,3,0,0,0,0,0,0,3,72,0.69902912621359226]
["Answers","","","","","","","","","","","","","","","","","","","","","","",""]
["Category","Freshwater","Paper and data unique identifier(eg. 1-1,10-150)","887-2-GD"]
["Scores",10,10,5,5,5,5,0,5,5,4,0,0,4,4,4,3,0,0,0,0,0,0,3,72,0.69902912621359226]
["Answers","","","","","","","","","","","","","","","","","","","","","","",""]
["Category","Freshwater","Paper and data unique identifier(eg. 1-1,10-150)","889-1-GD-Reentered"]
["Scores",10,10,0,5,5,5,0,5,0,0,0,0,0,4,0,3,0,0,0,3,0,0,3,53,0.5145631067961165]
["Answers","","","","","","","","","","","","","","","","","","","","","","",""]
["Category","Freshwater","Paper and data unique identifier(eg. 1-1,10-150)","889-2-GD-Reentered"]
["Scores",10,10,0,5,5,5,0,5,0,0,0,0,0,4,0,3,0,0,0,3,0,0,3,53,0.5145631067961165]
["Answers","","","","","","","","","","","","","","","","","","","","","","",""]
["Category","Freshwater","Paper and data unique identifier(eg. 1-1,10-150)","889-3-GD-Reentered"]
["Scores",10,10,0,5,5,5,0,5,0,0,0,0,0,4,0,3,0,0,0,3,0,0,3,53,0.5145631067961165]
["Answers","","","","","","","","","","","","","","","","","","","","","","",""]
["Category","Freshwater","Paper and data unique identifier(eg. 1-1,10-150)","889-4-GD-Reentered"]
["Scores",10,10,0,5,5,5,0,5,0,0,0,0,0,4,0,3,0,0,0,3,0,0,3,53,0.5145631067961165]
["Answers","","","","","","","","","","","","","","","","","","","","","","",""]
["Category","Freshwater","Paper and data unique identifier(eg. 1-1,10-150)","889-5-GD-Reentered"]
["Scores",10,5,5,5,5,5,0,5,0,0,0,0,4,4,4,3,0,0,0,3,0,3,3,64,0.62135922330097082]
["Answers","","","","","","","","","","","","","","","","","","","","","","",""]
["Category","Freshwater","Paper and data unique identifier(eg. 1-1,10-150)","889-6-GD-Reentered"]
["Scores",10,5,5,5,5,5,0,5,0,0,0,0,4,4,4,3,0,0,0,3,0,3,3,64,0.62135922330097082]
["Answers","","","","","","","","","","","","","","","","","","","","","","",""]
["Category","Freshwater","Paper and data unique identifier(eg. 1-1,10-150)","889-7-GD-Reentered"]
["Scores",10,5,5,5,5,5,0,5,0,0,0,0,4,4,4,3,0,0,0,3,0,3,3,64,0.62135922330097082]
["Answers","","","","","","","","","","","","","","","","","","","","","","",""]
["Category","Freshwater","Paper and data unique identifier(eg. 1-1,10-150)","889-8-GD-Reentered"]
["Scores",10,5,5,5,5,5,0,5,0,0,0,0,4,4,4,3,0,0,0,3,0,3,3,64,0.62135922330097082]
["Answers","","","","","","","","","","","","","","","","","","","","","","",""]
["Category","Freshwater","Paper and data unique identifier(eg. 1-1,10-150)","940-1"]
["Scores",10,10,5,5,5,5,0,5,5,4,0,0,4,4,0,0,0,0,0,0,0,3,0,65,0.6310679611650486]
["Answers","","","","","","","","","","","","","","","","","","","","","","",""]
["Category","Freshwater","Paper and data unique identifier(eg. 1-1,10-150)","940-2"]
["Scores",10,10,5,5,5,5,0,5,5,4,0,0,4,4,0,0,0,0,0,0,0,3,0,65,0.6310679611650486]
["Answers","","","","","","","","","","","","","","","","","","","","","","",""]
["Category","Freshwater","Paper and data unique identifier(eg. 1-1,10-150)","941-1"]
["Scores",10,10,5,5,5,5,0,5,5,4,4,0,4,4,4,1,0,1,0,0,0,3,0,75,0.72815533980582525]
["Answers","","","","","","","","","","","","","","","","","","","","","","",""]
["Category","Freshwater","Paper and data unique identifier(eg. 1-1,10-150)","941-2"]
["Scores",10,10,5,5,5,5,0,5,5,4,4,0,4,4,4,1,0,1,0,0,0,3,0,75,0.72815533980582525]
["Answers","","","","","","","","","","","","","","","","","","","","","","",""]
["Category","Freshwater","Paper and data unique identifier(eg. 1-1,10-150)","941-3"]
["Scores",10,10,5,5,5,5,0,5,5,4,4,0,4,4,4,1,0,1,0,0,0,3,0,75,0.72815533980582525]
["Answers","","","","","","","","","","","","","","","","","","","","","","",""]
["Category","Freshwater","Paper and data unique identifier(eg. 1-1,10-150)","941-4"]
["Scores",10,10,5,5,5,5,0,5,5,4,4,0,4,4,4,1,0,1,0,0,0,3,0,75,0.72815533980582525]
["Answers","","","","","","","","","","","","","","","","","","","","","","",""]
["Category","Freshwater","Paper and data unique identifier(eg. 1-1,10-150)","941-5"]
["Scores",10,10,5,5,5,5,0,5,5,4,4,0,4,4,4,1,0,1,0,0,0,3,0,75,0.72815533980582525]
["Answers","","","","","","","","","","","","","","","","","","","","","","",""]
["Category","Freshwater","Paper and data unique identifier(eg. 1-1,10-150)","941-6"]
["Scores",10,10,5,5,5,5,0,5,5,4,4,0,4,4,4,1,0,1,0,0,0,3,0,75,0.72815533980582525]
["Answers","","","","","","","","","","","","","","","","","","","","","","",""]
["Category","Freshwater","Paper and data unique identifier(eg. 1-1,10-150)","941-7"]
["Scores",10,10,5,5,5,5,0,5,5,4,4,0,4,4,4,1,0,1,0,0,0,3,0,75,0.72815533980582525]
["Answers","","","","","","","","","","","","","","","","","","","","","","",""]
["Category","Freshwater","Paper and data unique identifier(eg. 1-1,10-150)","941-8"]
["Scores",10,10,5,5,5,5,0,5,5,4,4,0,4,4,4,1,0,1,0,0,0,3,0,75,0.72815533980582525]
["Answers","","","","","","","","","","","","","","","","","","","","","","",""]
["Category","Freshwater","Paper and data unique identifier(eg. 1-1,10-150)","941-9"]
["Scores",10,10,5,5,5,5,0,5,5,4,4,0,4,4,4,1,0,1,0,0,0,3,0,75,0.72815533980582525]
["Answers","","","","","","","","","","","","","","","","","","","","","","",""]
["Category","Freshwater","Paper and data unique identifier(eg. 1-1,10-150)","941-10"]
["Scores",10,10,5,5,5,5,0,5,5,4,4,0,4,4,4,1,0,1,0,0,0,3,0,75,0.72815533980582525]
["Answers","","","","","","","","","","","","","","","","","","","","","","",""]
["Category","Freshwater","Paper and data unique identifier(eg. 1-1,10-150)","941-11"]
["Scores",10,10,5,5,5,5,0,5,5,4,4,0,4,4,4,1,0,1,0,0,0,3,0,75,0.72815533980582525]
["Answers","","","","","","","","","","","","","","","","","","","","","","",""]
["Category","Freshwater","Paper and data unique identifier(eg. 1-1,10-150)","941-12"]
["Scores",10,10,5,5,5,5,0,5,5,4,4,0,4,4,4,1,0,1,0,0,0,3,0,75,0.72815533980582525]
["Answers","","","","","","","","","","","","","","","","","","","","","","",""]
["Category","Freshwater","Paper and data unique identifier(eg. 1-1,10-150)","941-13"]
["Scores",10,10,5,5,5,5,0,5,5,4,4,0,4,4,4,1,0,1,0,0,0,3,0,75,0.72815533980582525]
["Answers","","","","","","","","","","","","","","","","","","","","","","",""]
["Category","Freshwater","Paper and data unique identifier(eg. 1-1,10-150)","941-14"]
["Scores",10,10,5,5,5,5,0,5,5,4,4,0,4,4,4,1,0,1,0,0,0,3,0,75,0.72815533980582525]
["Answers","","","","","","","","","","","","","","","","","","","","","","",""]
["Category","Freshwater","Paper and data unique identifier(eg. 1-1,10-150)","941-15"]
["Scores",10,10,5,5,5,5,0,5,5,4,4,0,4,4,4,1,0,1,0,0,0,3,0,75,0.72815533980582525]
["Answers","","","","","","","","","","","","","","","","","","","","","","",""]
["Category","Freshwater","Paper and data unique identifier(eg. 1-1,10-150)","941-16"]
["Scores",10,10,5,5,5,5,0,5,5,4,4,0,4,4,4,1,0,1,0,0,0,3,0,75,0.72815533980582525]
["Answers","","","","","","","","","","","","","","","","","","","","","","",""]
["Category","Freshwater","Paper and data unique identifier(eg. 1-1,10-150)","941-17"]
["Scores",10,10,5,5,5,5,0,5,5,4,4,0,4,4,4,1,0,1,0,0,0,3,0,75,0.72815533980582525]
["Answers","","","","","","","","","","","","","","","","","","","","","","",""]
["Category","Freshwater","Paper and data unique identifier(eg. 1-1,10-150)","961-1"]
["Scores",10,10,5,5,5,5,0,5,5,4,0,0,0,4,0,0,0,0,0,0,0,3,0,61,0.59223300970873782]
["Answers","","","","","","","","","","","","","","","","","","","","","","",""]
["Category","Freshwater","Paper and data unique identifier(eg. 1-1,10-150)","856-23"]
["Scores",10,10,5,5,5,5,0,0,5,4,0,0,0,4,4,0,0,0,0,0,0,3,3,63,0.61165048543689315]
["Answers","","","","","","","","","","","","","","","","","","","","","","",""]
["Category","Freshwater","Paper and data unique identifier(eg. 1-1,10-150)","856-24"]
["Scores",10,10,5,5,5,5,0,0,5,4,0,0,0,4,4,0,0,0,0,0,0,3,3,63,0.61165048543689315]
["Answers","","","","","","","","","","","","","","","","","","","","","","",""]
["Category","Freshwater","Paper and data unique identifier(eg. 1-1,10-150)","1258-1"]
["Scores",10,10,5,5,5,5,2,0,5,0,0,0,4,4,4,0,0,0,0,0,0,0,3,62,0.60194174757281549]
["Answers","7 days","Relative growth rates: Frond area","EC","EC50 and EC10","12 controls","For each herbicide six or eight concentrations increasing in steps of a factor two were used. Each concentration was represented by three or six replicates in the two treatments: long-term versus pulse exposure, and there were 12 controls.","OECD guideline for testing of chemicals, 2000), increased the difference between the EC50 values of pulse-and long-term-exposed plants ","","Fresh autoclaved \"K\" media.","Not stated","Only pendimethalin was measured.","","Stated and observable","ANOVA, logisitic concentration response model","For EC50, yes.\nFor EC10, no.","","","","","","","","Technical products. Metsulfuron-methyl 98.5%"]
["Category","Freshwater","Paper and data unique identifier(eg. 1-1,10-150)","1258-2"]
["Scores",10,10,5,5,5,5,2,0,5,0,0,0,4,4,4,0,0,0,0,0,0,0,3,62,0.60194174757281549]
["Answers","7 days","Relative growth rates: Frond area","EC","EC50 and EC10","12 controls","For each herbicide six or eight concentrations increasing in steps of a factor two were used. Each concentration was represented by three or six replicates in the two treatments: long-term versus pulse exposure, and there were 12 controls.","OECD guideline for testing of chemicals, 2000), increased the difference between the EC50 values of pulse-and long-term-exposed plants ","","Fresh autoclaved \"K\" media.","Not stated","Only pendimethalin was measured.","","Stated and observable","ANOVA, logisitic concentration response model","For EC50, yes.\nFor EC10, no.","","","","","","","","Technical products. Metsulfuron-methyl 98.5%"]
["Category","Freshwater","Paper and data unique identifier(eg. 1-1,10-150)","1258-3"]
["Scores",10,10,5,5,5,5,2,0,5,0,0,0,4,4,4,0,0,0,0,0,0,0,3,62,0.60194174757281549]
["Answers","7 days","Relative growth rates: Frond area","EC","EC50 and EC10","12 controls","For each herbicide six or eight concentrations increasing in steps of a factor two were used. Each concentration was represented by three or six replicates in the two treatments: long-term versus pulse exposure, and there were 12 controls.","OECD guideline for testing of chemicals, 2000), increased the difference between the EC50 values of pulse-and long-term-exposed plants ","","Fresh autoclaved \"K\" media.","Not stated","Only pendimethalin was measured.","","Stated and observable","ANOVA, logisitic concentration response model","For EC50, yes.\nFor EC10, no.","","","","","","","","Technical products. Metsulfuron-methyl 98.5%"]
["Category","Freshwater","Paper and data unique identifier(eg. 1-1,10-150)","1258-4"]
["Scores",10,10,5,5,5,5,2,0,5,0,0,0,4,4,4,0,0,0,0,0,0,0,3,62,0.60194174757281549]
["Answers","7 days","Relative growth rates: Frond area","EC","EC50 and EC10","12 controls","For each herbicide six or eight concentrations increasing in steps of a factor two were used. Each concentration was represented by three or six replicates in the two treatments: long-term versus pulse exposure, and there were 12 controls.","OECD guideline for testing of chemicals, 2000), increased the difference between the EC50 values of pulse-and long-term-exposed plants ","","Fresh autoclaved \"K\" media.","Not stated","Only pendimethalin was measured.","","Stated and observable","ANOVA, logisitic concentration response model","For EC50, yes.\nFor EC10, no.","","","","","","","","Technical products. Metsulfuron-methyl 98.5%"]
["Category","Freshwater","Paper and data unique identifier(eg. 1-1,10-150)","1258-5"]
["Scores",10,10,5,5,5,5,2,0,5,0,0,0,4,4,0,0,0,0,0,0,0,0,3,58,0.56310679611650483]
["Answers","7 days","Relative growth rates: Frond area","EC","EC50 and EC10","12 controls","For each herbicide six or eight concentrations increasing in steps of a factor two were used. Each concentration was represented by three or six replicates in the two treatments: long-term versus pulse exposure, and there were 12 controls.","OECD guideline for testing of chemicals, 2000), increased the difference between the EC50 values of pulse-and long-term-exposed plants ","","Fresh autoclaved \"K\" media.","Not stated","Only pendimethalin was measured.","","Stated and observable","ANOVA, logisitic concentration response model","For EC50, yes.\nFor EC10, no.","","","","","","","","Technical products. Metsulfuron-methyl 98.5%"]
["Category","Freshwater","Paper and data unique identifier(eg. 1-1,10-150)","1258-6"]
["Scores",10,10,5,5,5,5,2,0,5,0,0,0,4,4,0,0,0,0,0,0,0,0,3,58,0.56310679611650483]
["Answers","7 days","Relative growth rates: Frond area","EC","EC50 and EC10","12 controls","For each herbicide six or eight concentrations increasing in steps of a factor two were used. Each concentration was represented by three or six replicates in the two treatments: long-term versus pulse exposure, and there were 12 controls.","OECD guideline for testing of chemicals, 2000), increased the difference between the EC50 values of pulse-and long-term-exposed plants ","","Fresh autoclaved \"K\" media.","Not stated","Only pendimethalin was measured.","","Stated and observable","ANOVA, logisitic concentration response model","For EC50, yes.\nFor EC10, no.","","","","","","","","Technical products. Metsulfuron-methyl 98.5%"]
["Category","Freshwater","Paper and data unique identifier(eg. 1-1,10-150)","1258-7"]
["Scores",10,10,5,5,5,5,2,0,5,0,0,0,4,4,0,0,0,0,0,0,0,0,3,58,0.56310679611650483]
["Answers","7 days","Relative growth rates: Frond area","EC","EC50 and EC10","12 controls","For each herbicide six or eight concentrations increasing in steps of a factor two were used. Each concentration was represented by three or six replicates in the two treatments: long-term versus pulse exposure, and there were 12 controls.","OECD guideline for testing of chemicals, 2000), increased the difference between the EC50 values of pulse-and long-term-exposed plants ","","Fresh autoclaved \"K\" media.","Not stated","Only pendimethalin was measured.","","Stated and observable","ANOVA, logisitic concentration response model","For EC50, yes.\nFor EC10, no.","","","","","","","","Technical products. Metsulfuron-methyl 98.5%"]
["Category","Freshwater","Paper and data unique identifier(eg. 1-1,10-150)","1258-8"]
["Scores",10,10,5,5,5,5,2,0,5,0,0,0,4,4,0,0,0,0,0,0,0,0,3,58,0.56310679611650483]
["Answers","7 days","Relative growth rates: Frond area","EC","EC50 and EC10","12 controls","For each herbicide six or eight concentrations increasing in steps of a factor two were used. Each concentration was represented by three or six replicates in the two treatments: long-term versus pulse exposure, and there were 12 controls.","OECD guideline for testing of chemicals, 2000), increased the difference between the EC50 values of pulse-and long-term-exposed plants ","","Fresh autoclaved \"K\" media.","Not stated","Only pendimethalin was measured.","","Stated and observable","ANOVA, logisitic concentration response model","For EC50, yes.\nFor EC10, no.","","","","","","","","Technical products. Metsulfuron-methyl 98.5%"]
["Category","Freshwater","Paper and data unique identifier(eg. 1-1,10-150)","1259-1"]
["Scores",10,10,5,5,5,5,0,0,5,0,0,0,4,4,4,3,0,0,0,0,0,3,3,66,0.64077669902912626]
["Answers","6, 9, 12 and 15 days","Relative growth rate: Dry weight","EC50","EC50","Six replicates of each herbicide concentration and control were set up.","Six replicates of each herbicide concentration and control were set up.","","Not stated","K medium at pH 5, 24 degrees C.","Not stated","All concentrations are given in nominal concentrations. 0.053, 0.15, 0.43, 1.2, 3.5, 10 ug/L of metsulfuron-methyl\n","","Observable and stated","Logisitic curve","Standard error","pH 5","","","","","","Growth cabinet at 24 degrees C","Technical grade, 98.5%"]
["Category","Freshwater","Paper and data unique identifier(eg. 1-1,10-150)","1259-2"]
["Scores",10,10,5,5,5,5,0,0,5,0,0,0,4,4,4,3,0,0,0,0,0,3,3,66,0.64077669902912626]
["Answers","6, 9, 12 and 15 days","Relative growth rate: Dry weight","EC50","EC50","Six replicates of each herbicide concentration and control were set up.","Six replicates of each herbicide concentration and control were set up.","","Not stated","K medium at pH 5, 24 degrees C.","Not stated","All concentrations are given in nominal concentrations. 0.053, 0.15, 0.43, 1.2, 3.5, 10 ug/L of metsulfuron-methyl\n","","Observable and stated","Logisitic curve","Standard error","pH 5","","","","","","Growth cabinet at 24 degrees C","Technical grade, 98.5%"]
["Category","Freshwater","Paper and data unique identifier(eg. 1-1,10-150)","1259-3"]
["Scores",10,10,5,5,5,5,0,0,5,0,0,0,4,4,4,3,0,0,0,0,0,3,3,66,0.64077669902912626]
["Answers","6, 9, 12 and 15 days","Relative growth rate: Dry weight","EC50","EC50","Six replicates of each herbicide concentration and control were set up.","Six replicates of each herbicide concentration and control were set up.","","Not stated","K medium at pH 5, 24 degrees C.","Not stated","All concentrations are given in nominal concentrations. 0.053, 0.15, 0.43, 1.2, 3.5, 10 ug/L of metsulfuron-methyl\n","","Observable and stated","Logisitic curve","Standard error","pH 5","","","","","","Growth cabinet at 24 degrees C","Technical grade, 98.5%"]
["Category","Freshwater","Paper and data unique identifier(eg. 1-1,10-150)","1259-4"]
["Scores",10,10,5,5,5,5,0,0,5,0,0,0,4,4,4,3,0,0,0,0,0,3,3,66,0.64077669902912626]
["Answers","6, 9, 12 and 15 days","Relative growth rate: Dry weight","EC50","EC50","Six replicates of each herbicide concentration and control were set up.","Six replicates of each herbicide concentration and control were set up.","","Not stated","K medium at pH 5, 24 degrees C.","Not stated","All concentrations are given in nominal concentrations. 0.053, 0.15, 0.43, 1.2, 3.5, 10 ug/L of metsulfuron-methyl\n","","Observable and stated","Logisitic curve","Standard error","pH 5","","","","","","Growth cabinet at 24 degrees C","Technical grade, 98.5%"]